Workbook

Sheet S&V Div 1
G1: South & Vale - Division One | P1: =SUM(K5:K14)/8 -> 37.0 | Q1: =INT(P1) -> 37.0
G2: Results For Season 2018-19
D3: Fixtures | I3: Shots
D4: Play | E4: W | F4: D | G4: L | H4: For | I4: Aga | J4: Diff | K4: Pts
B5: Wootton 'Chiefs' | D5: =VLOOKUP($B5,$V$34:$Z$48,5,0)+VLOOKUP($B5,$V$19:$Z$31,5,0) -> 8 | E5: =VLOOKUP($B5,$V$34:$Z$48,4,0)+VLOOKUP($B5,$V$19:$Z$31,4,0) -> 6 | F5: =VLOOKUP($B5,$V$34:$Z$48,2,0)+VLOOKUP($B5,$V$19:$Z$31,2,0) -> 1 | G5: =VLOOKUP($B5,$V$34:$Z$48,3,0)+VLOOKUP($B5,$V$19:$Z$31,3,0) -> 1 | H5: =VLOOKUP($B5,$Q$19:$S$31,3,0)+VLOOKUP($B5,$Q$36:$S$48,3,0) -> 225 | I5: =H5-J5 -> 136 | J5: =VLOOKUP($B5,$Q$19:$T$31,4,0)+VLOOKUP($B5,$Q$36:$T$48,4,0) -> 89 | K5: =VLOOKUP($B5,$Q$19:$T$31,2,0)+VLOOKUP($B5,$Q$36:$T$48,2,0) -> 50 | P5: =(16-D5)*8+K5 -> 114
B6: Chieveley | D6: 8 | E6: 6 | F6: 0 | G6: 2 | H6: 219 | I6: 165 | J6: 54 | K6: 50 | P6: =(16-D6)*8+K6 -> 114
B7: Warborough 'Wanderers' | D7: 8 | E7: 6 | F7: 0 | G7: 2 | H7: 199 | I7: 144 | J7: 55 | K7: 46 | P7: 110
B8: Didcot Bowls Club 'Rams' | D8: 9 | E8: 5 | F8: 0 | G8: 4 | H8: 211 | I8: 198 | J8: 13 | K8: 36 | P8: 92
B9: Wallingford 'Royals' | D9: 9 | E9: 4 | F9: 0 | G9: 5 | H9: 208 | I9: 198 | J9: 10 | K9: 36 | P9: 92
B10: Grove 'Grovelands' | D10: 8 | E10: 3 | F10: 0 | G10: 5 | H10: 148 | I10: 196 | J10: -48 | K10: 26 | P10: 90
B11: Cholsey 'Canaries' | D11: 8 | E11: 2 | F11: 1 | G11: 5 | H11: 166 | I11: 214 | J11: -48 | K11: 20 | P11: 84
B12: Stanford 'Village' | D12: 8 | E12: 2 | F12: 0 | G12: 6 | H12: 163 | I12: 200 | J12: -37 | K12: 16 | P12: 80
B13: Stanford 'Vale' | D13: 8 | E13: 2 | F13: 0 | G13: 6 | H13: 145 | I13: 233 | J13: -88 | K13: 16 | P13: 80
B15: DATE | C15: Home | D15: . | E15: Pts | F15: Sht | G15: v | H15: Away | I15: . | J15: Pts | K15: Sht | L15: Result | M15: Diff | N15: Result | O15: Diff | V15: Sht | W15: (All)
A16: Wk 1 | B16: 2018-09-24 | C16: Stanford 'Village' | E16: 0 | F16: 19 | G16: v | H16: Wallingford 'Royals' | J16: 8 | K16: 30 | L16: =IF(E16=" "," ",IF(E16<4,"L",IF(E16=4,"D","W"))) -> L | M16: =F16-K16 -> -11 | N16: =IF(J16=" "," ",IF(J16<4,"L",IF(J16=4,"D","W"))) -> W | O16: =K16-F16 -> 11 | Q16: Home
A17: x | L17: D | M17: 0 | N17: D | O17: 0 | R17: Values | V17: Count of Pts | W17: Column Labels
A18: Wk 2 | B18: 2018-10-01 | C18: Stanford 'Village' | E18: 0 | F18: 17 | G18: v | H18: Warborough 'Wanderers' | J18: 8 | K18: 22 | L18: L | M18: -5 | N18: W | O18: 5 | Q18: Row Labels | R18: Sum of Pts | S18: Sum of Sht | T18: Sum of Diff | V18: Row Labels | W18: D | X18: L | Y18: W | Z18: Grand Total
A19: Wk 2 | B19: 2018-10-02 | C19: Cholsey 'Canaries' | E19: 4 | F19: 20 | G19: v | H19: Wootton 'Chiefs' | J19: 4 | K19: 20 | L19: D | M19: 0 | N19: D | O19: 0 | Q19: Chieveley | R19: 34 | S19: 149 | T19: 53 | V19: Chieveley | X19: 1 | Y19: 4 | Z19: 5
A20: Wk 2 | B20: 2018-10-04 | C20: Chieveley | E20: 8 | F20: 36 | G20: v | H20: Grove 'Grovelands' | J20: 0 | K20: 17 | L20: W | M20: 19 | N20: L | O20: -19 | Q20: Cholsey 'Canaries' | R20: 18 | S20: 95 | T20: 11 | V20: Cholsey 'Canaries' | W20: 1 | X20: 1 | Y20: 2 | Z20: 4
A21: Wk 2 | B21: 2018-10-04 | C21: Didcot Bowls Club 'Rams' | E21: 8 | F21: 33 | G21: v | H21: Wallingford 'Royals' | J21: 0 | K21: 13 | L21: W | M21: 20 | N21: L | O21: -20 | Q21: Didcot Bowls Club 'Rams' | R21: 22 | S21: 106 | T21: 31 | V21: Didcot Bowls Club 'Rams' | X21: 1 | Y21: 3 | Z21: 4
A22: x | L22: W | M22: 0 | N22: W | O22: 0 | Q22: Grove 'Grovelands' | R22: 18 | S22: 74 | T22: 22 | V22: Grove 'Grovelands' | X22: 1 | Y22: 2 | Z22: 3
A23: Wk 3 | B23: 2018-10-08 | C23: Stanford 'Vale' | E23: 2 | F23: 23 | G23: v | H23: Chieveley | J23: 6 | K23: 24 | L23: L | M23: -1 | N23: =IF(J23=" "," ",IF(J23<4,"L",IF(J23=4,"D","W"))) -> W | O23: 1 | Q23: Stanford 'Vale' | R23: 16 | S23: 98 | T23: 4 | V23: Stanford 'Vale' | X23: 2 | Y23: 2 | Z23: 4
A24: Wk 3 | B24: 2018-10-10 | C24: Grove 'Grovelands' | E24: 2 | F24: 21 | G24: v | H24: Didcot Bowls Club 'Rams' | J24: 6 | K24: 22 | L24: L | M24: -1 | N24: W | O24: 1 | Q24: Stanford 'Village' | R24: 16 | S24: 101 | T24: 24 | V24: Stanford 'Village' | X24: 2 | Y24: 2 | Z24: 4
A25: Wk 3 | B25: 2018-10-11 | C25: Wallingford 'Royals' | E25: 8 | F25: 25 | G25: v | H25: Warborough 'Wanderers' | J25: 0 | K25: 17 | L25: W | M25: 8 | N25: L | O25: -8 | Q25: Wallingford 'Royals' | R25: 26 | S25: 132 | T25: 35 | V25: Wallingford 'Royals' | X25: 2 | Y25: 3 | Z25: 5
A26: x | L26: L | M26: 0 | N26: L | O26: 0 | Q26: Warborough 'Wanderers' | R26: 24 | S26: 98 | T26: 29 | V26: Warborough 'Wanderers' | X26: 1 | Y26: 3 | Z26: 4
A27: Wk 4 | B27: 2018-10-18 | C27: Chieveley | E27: 8 | F27: 40 | G27: v | H27: Cholsey 'Canaries' | J27: 0 | K27: 17 | L27: W | M27: 23 | N27: L | O27: -23 | Q27: Wootton 'Chiefs' | R27: 32 | S27: 134 | T27: 81 | V27: Wootton 'Chiefs' | Y27: 4 | Z27: 4
A28: Wk 4 | B28: 2018-10-18 | C28: Didcot Bowls Club 'Rams' | E28: 8 | F28: 35 | G28: v | H28: Stanford 'Vale' | J28: 0 | K28: 16 | L28: W | M28: 19 | N28: L | O28: -19 | Q28: (blank) | T28: 0 | V28: (blank)
A29: Wk 4 | B29: 2018-10-18 | C29: Warborough 'Wanderers' | E29: 8 | F29: 20 | G29: v | H29: Grove 'Grovelands' | J29: 0 | K29: 7 | L29: W | M29: 13 | N29: L | O29: -13 | Q29: Grand Total | R29: 206 | S29: 987 | T29: 290 | V29: Grand Total | W29: 1 | X29: 11 | Y29: 25 | Z29: 37
A30: x | L30: L | M30: 0 | N30: L | O30: 0
A31: Wk 6 | B31: 2018-10-29 | C31: Stanford 'Vale' | E31: 2 | F31: 20 | G31: v | H31: Warborough 'Wanderers' | J31: 6 | K31: 30 | L31: L | M31: -10 | N31: W | O31: 10
A32: Wk 6 | B32: 2018-10-30 | C32: Cholsey 'Canaries' | E32: 6 | F32: 25 | G32: v | H32: Didcot Bowls Club 'Rams' | J32: 2 | K32: 24 | L32: W | M32: 1 | N32: L | O32: -1
A33: Wk 6 | B33: 2018-10-31 | C33: Grove 'Grovelands' | E33: 8 | F33: 22 | G33: v | H33: Stanford 'Village' | J33: 0 | K33: 19 | L33: W | M33: 3 | N33: L | O33: -3
A34: Wk 6 | B34: 2018-10-31 | C34: Wootton 'Chiefs' | E34: 8 | F34: 29 | G34: v | H34: Wallingford 'Royals' | J34: 0 | K34: 14 | L34: W | M34: 15 | N34: L | O34: -15 | R34: Values | V34: Count of Pts | W34: Column Labels
A35: Wk 6 | B35: 2018-11-01 | C35: Wallingford 'Royals' | E35: 8 | F35: 26 | G35: v | H35: Cholsey 'Canaries' | J35: 0 | K35: 19 | L35: W | M35: 7 | N35: L | O35: -7 | Q35: Row Labels | R35: Sum of Pts | S35: Sum of Sht | T35: Sum of Diff2 | V35: Row Labels | W35: D | X35: L | Y35: W | Z35: Grand Total
A36: x | L36: L | M36: 0 | N36: L | O36: 0 | Q36: Chieveley | R36: 16 | S36: 70 | T36: 1 | V36: Chieveley | X36: 1 | Y36: 2 | Z36: 3
A37: Wk 7 | B37: 2018-11-05 | C37: Stanford 'Village' | E37: 8 | F37: 40 | G37: v | H37: Stanford 'Vale' | J37: 0 | K37: 8 | L37: W | M37: 32 | N37: L | O37: -32 | Q37: Cholsey 'Canaries' | R37: 2 | S37: 71 | T37: -59 | V37: Cholsey 'Canaries' | X37: 4 | Z37: 4
A38: Wk 7 | B38: 2018-11-08 | C38: Chieveley | E38: 2 | F38: 14 | G38: v | H38: Wootton 'Chiefs' | J38: 6 | K38: 30 | L38: L | M38: -16 | N38: W | O38: 16 | Q38: Didcot Bowls Club 'Rams' | R38: 14 | S38: 105 | T38: -18 | V38: Didcot Bowls Club 'Rams' | X38: 3 | Y38: 2 | Z38: 5
A39: Wk 7 | B39: 2018-11-08 | C39: Wallingford 'Royals' | E39: 8 | F39: 40 | G39: v | H39: Grove 'Grovelands' | J39: 0 | K39: 14 | L39: W | M39: 26 | N39: L | O39: -26 | Q39: Grove 'Grovelands' | R39: 8 | S39: 74 | T39: -70 | V39: Grove 'Grovelands' | X39: 4 | Y39: 1 | Z39: 5
A40: Wk 7 | B40: 2018-11-08 | C40: Warborough 'Wanderers' | E40: 8 | F40: 29 | G40: v | H40: Cholsey 'Canaries' | J40: 0 | K40: 14 | L40: =IF(E40=" "," ",IF(E40<4,"L",IF(E40=4,"D","W"))) -> W | M40: =F40-K40 -> 15 | N40: L | O40: =K40-F40 -> -15 | Q40: Stanford 'Vale' | R40: 0 | S40: 47 | T40: -92 | V40: Stanford 'Vale' | X40: 4 | Z40: 4
A41: x | L41: L | M41: 0 | N41: L | O41: 0 | Q41: Stanford 'Village' | R41: 0 | S41: 62 | T41: -61 | V41: Stanford 'Village' | X41: 4 | Z41: 4
A42: Wk 8 | B42: 2018-11-12 | C42: Stanford 'Vale' | E42: 6 | F42: 20 | G42: v | H42: Wallingford 'Royals' | J42: 2 | K42: 19 | L42: W | M42: 1 | N42: L | O42: -1 | Q42: Wallingford 'Royals' | R42: 10 | S42: 76 | T42: -25 | V42: Wallingford 'Royals' | X42: 3 | Y42: 1 | Z42: 4
A43: Wk 8 | B43: 2018-11-13 | C43: Cholsey 'Canaries' | E43: 8 | F43: 33 | G43: v | H43: Stanford 'Village' | J43: 0 | K43: 14 | L43: W | M43: 19 | N43: L | O43: -19 | Q43: Warborough 'Wanderers' | R43: 22 | S43: 101 | T43: 26 | V43: Warborough 'Wanderers' | X43: 1 | Y43: 3 | Z43: 4
A44: Wk 8 | B44: 2018-11-14 | C44: Wootton 'Chiefs' | E44: 8 | F44: 31 | G44: v | H44: Grove 'Grovelands' | J44: 0 | K44: 10 | L44: W | M44: 21 | N44: L | O44: -21 | Q44: Wootton 'Chiefs' | R44: 18 | S44: 91 | T44: 8 | V44: Wootton 'Chiefs' | W44: 1 | X44: 1 | Y44: 2 | Z44: 4
A45: Wk 8 | B45: 2018-11-15 | C45: Chieveley | E45: 8 | F45: 32 | G45: v | H45: Didcot Bowls Club 'Rams' | J45: 0 | K45: 20 | L45: W | M45: 12 | N45: =IF(J45=" "," ",IF(J45<4,"L",IF(J45=4,"D","W"))) -> L | O45: -12 | Q45: (blank) | T45: 0 | V45: (blank)
A46: x | L46: =IF(E46=" "," ",IF(E46<4,"L",IF(E46=4,"D","W"))) -> L | M46: =F46-K46 -> 0 | N46: =IF(J46=" "," ",IF(J46<4,"L",IF(J46=4,"D","W"))) -> L | O46: =K46-F46 -> 0 | Q46: Grand Total | R46: 90 | S46: 697 | T46: -290 | V46: Grand Total | W46: 1 | X46: 25 | Y46: 11 | Z46: 37
A47: Wk10 | B47: 2018-11-28 | C47: Grove 'Grovelands' | E47: 8 | F47: 31 | G47: v | H47: Stanford 'Vale' | J47: 0 | K47: 11 | L47: W | M47: 20 | N47: L | O47: -20
A48: Wk10 | B48: 2018-11-29 | C48: Didcot Bowls Club 'Rams' | E48: 6 | F48: 25 | G48: v | H48: Wootton 'Chiefs' | J48: 2 | K48: 14 | L48: W | M48: 11 | N48: =IF(J48=" "," ",IF(J48<4,"L",IF(J48=4,"D","W"))) -> L | O48: -11
A49: Wk10 | B49: 2018-11-29 | C49: Warborough 'Wanderers' | E49: 6 | F49: 25 | G49: v | H49: Chieveley | J49: 2 | K49: 21 | L49: W | M49: 4 | N49: =IF(J49=" "," ",IF(J49<4,"L",IF(J49=4,"D","W"))) -> L | O49: -4
A50: x | L50: L | M50: 0 | N50: =IF(J50=" "," ",IF(J50<4,"L",IF(J50=4,"D","W"))) -> L | O50: 0
A51: Wk11 | B51: 2018-12-04 | C51: Cholsey 'Canaries' | E51: 0 | F51: 17 | G51: v | H51: Grove 'Grovelands' | J51: 8 | K51: 26 | L51: L | M51: -9 | N51: W | O51: 9
A52: Wk11 | B52: 2018-12-05 | C52: Wootton 'Chiefs' | E52: 8 | F52: 33 | G52: v | H52: Stanford 'Vale' | J52: 0 | K52: 12 | L52: W | M52: 21 | N52: =IF(J52=" "," ",IF(J52<4,"L",IF(J52=4,"D","W"))) -> L | O52: -21
A53: Wk11 | B53: 2018-12-06 | C53: Chieveley | E53: 8 | F53: 27 | G53: v | H53: Stanford 'Village' | J53: 0 | K53: 12 | L53: W | M53: 15 | N53: =IF(J53=" "," ",IF(J53<4,"L",IF(J53=4,"D","W"))) -> L | O53: -15
A54: Wk11 | B54: 2018-12-06 | C54: Didcot Bowls Club 'Rams' | E54: 0 | F54: 13 | G54: v | H54: Warborough 'Wanderers' | J54: 8 | K54: 32 | L54: L | M54: -19 | N54: W | O54: 19
A55: x | L55: L | M55: 0 | N55: =IF(J55=" "," ",IF(J55<4,"L",IF(J55=4,"D","W"))) -> L | O55: 0
A56: Wk12 | B56: 2018-12-10 | C56: Stanford 'Vale' | E56: 6 | F56: 35 | G56: v | H56: Cholsey 'Canaries' | J56: 2 | K56: 21 | L56: W | M56: 14 | N56: =IF(J56=" "," ",IF(J56<4,"L",IF(J56=4,"D","W"))) -> L | O56: -14
A57: Wk12 | B57: 2018-12-10 | C57: Stanford 'Village' | E57: 8 | F57: 25 | G57: v | H57: Didcot Bowls Club 'Rams' | J57: 0 | K57: 17 | L57: W | M57: 8 | N57: L | O57: -8
A58: Wk12 | B58: 2018-12-13 | C58: Wallingford 'Royals' | E58: 0 | F58: 21 | G58: v | H58: Chieveley | J58: 8 | K58: 25 | L58: L | M58: -4 | N58: W | O58: 4
A59: Wk12 | B59: 2018-12-13 | C59: Warborough 'Wanderers' | E59: 2 | F59: 24 | G59: v | H59: Wootton 'Chiefs' | J59: 6 | K59: 27 | L59: L | M59: -3 | N59: W | O59: 3
A60: x | L60: L | M60: 0 | N60: L | O60: 0
A61: Wk13 | B61: 2018-12-19 | C61: Wootton 'Chiefs' | E61: 8 | F61: 41 | G61: v | H61: Stanford 'Village' | J61: 0 | K61: 17 | L61: W | M61: 24 | N61: L | O61: -24
A62: x | L62: =IF(E62=" "," ",IF(E62<4,"L",IF(E62=4,"D","W"))) -> L | M62: =F62-K62 -> 0 | N62: =IF(J62=" "," ",IF(J62<4,"L",IF(J62=4,"D","W"))) -> L | O62: =K62-F62 -> 0
A63: Wk14 | B63: 2019-01-03 | C63: Wallingford 'Royals' | E63: 2 | F63: 20 | G63: v | H63: Didcot Bowls Club 'Rams' | J63: 6 | K63: 22 | L63: =IF(E63=" "," ",IF(E63<4,"L",IF(E63=4,"D","W"))) -> L | M63: =F63-K63 -> -2 | N63: =IF(J63=" "," ",IF(J63<4,"L",IF(J63=4,"D","W"))) -> W | O63: =K63-F63 -> 2
A64: x | L64: L | M64: 0 | N64: =IF(J64=" "," ",IF(J64<4,"L",IF(J64=4,"D","W"))) -> L | O64: 0
A65: Wk16 | B65: 2019-01-14 | C65: Stanford 'Village' | G65: v | H65: Wootton 'Chiefs' | L65: L | M65: 0 | N65: =IF(J65=" "," ",IF(J65<4,"L",IF(J65=4,"D","W"))) -> L | O65: 0
A66: Wk16 | B66: 2019-01-17 | C66: Chieveley | G66: v | H66: Stanford 'Vale' | L66: L | M66: 0 | N66: L | O66: 0
A67: Wk16 | B67: 2019-01-17 | C67: Didcot Bowls Club 'Rams' | G67: v | H67: Grove 'Grovelands' | L67: L | M67: 0 | N67: L | O67: 0
A68: Wk16 | B68: 2019-01-17 | C68: Warborough 'Wanderers' | G68: v | H68: Wallingford 'Royals' | L68: L | M68: 0 | N68: L | O68: 0
A69: x | L69: =IF(E69=" "," ",IF(E69<4,"L",IF(E69=4,"D","W"))) -> L | M69: =F69-K69 -> 0 | N69: L | O69: =K69-F69 -> 0
A70: Wk17 | B70: 2019-01-21 | C70: Stanford 'Vale' | G70: v | H70: Didcot Bowls Club 'Rams' | L70: L | M70: 0 | N70: L | O70: 0
A71: Wk17 | B71: 2019-01-22 | C71: Cholsey 'Canaries' | G71: v | H71: Chieveley | L71: L | M71: 0 | N71: L | O71: 0
A72: Wk17 | B72: 2019-01-23 | C72: Grove 'Grovelands' | G72: v | H72: Warborough 'Wanderers' | L72: L | M72: 0 | N72: =IF(J72=" "," ",IF(J72<4,"L",IF(J72=4,"D","W"))) -> L | O72: 0
A73: Wk17 | B73: 2019-01-24 | C73: Wallingford 'Royals' | G73: v | H73: Stanford 'Village' | L73: L | M73: 0 | N73: L | O73: 0
A74: x | L74: =IF(E74=" "," ",IF(E74<4,"L",IF(E74=4,"D","W"))) -> L | M74: =F74-K74 -> 0 | N74: =IF(J74=" "," ",IF(J74<4,"L",IF(J74=4,"D","W"))) -> L | O74: =K74-F74 -> 0
A75: Wk18 | B75: 2019-01-28 | C75: Stanford 'Village' | G75: v | H75: Grove 'Grovelands' | L75: L | M75: 0 | N75: L | O75: 0
A76: Wk18 | B76: 2019-01-31 | C76: Didcot Bowls Club 'Rams' | G76: v | H76: Cholsey 'Canaries' | L76: L | M76: 0 | N76: L | O76: 0
A77: Wk18 | B77: 2019-01-31 | C77: Wallingford 'Royals' | G77: v | H77: Wootton 'Chiefs' | L77: L | M77: 0 | N77: =IF(J77=" "," ",IF(J77<4,"L",IF(J77=4,"D","W"))) -> L | O77: 0
A78: Wk18 | B78: 2019-01-31 | C78: Warborough 'Wanderers' | G78: v | H78: Stanford 'Vale' | L78: L | M78: 0 | N78: L | O78: 0
A79: x | L79: =IF(E79=" "," ",IF(E79<4,"L",IF(E79=4,"D","W"))) -> L | M79: =F79-K79 -> 0 | N79: L | O79: =K79-F79 -> 0
A80: Wk20 | B80: 2019-02-11 | C80: Stanford 'Vale' | G80: v | H80: Stanford 'Village' | L80: L | M80: 0 | N80: L | O80: 0
A81: Wk20 | B81: 2019-02-12 | C81: Cholsey 'Canaries' | G81: v | H81: Warborough 'Wanderers' | L81: =IF(E81=" "," ",IF(E81<4,"L",IF(E81=4,"D","W"))) -> L | M81: =F81-K81 -> 0 | N81: L | O81: =K81-F81 -> 0
A82: Wk20 | B82: 2019-02-13 | C82: Grove 'Grovelands' | G82: v | H82: Wallingford 'Royals' | L82: L | M82: 0 | N82: L | O82: 0
A83: Wk20 | B83: 2019-02-13 | C83: Wootton 'Chiefs' | G83: v | H83: Chieveley | L83: L | M83: 0 | N83: L | O83: 0
A84: x | L84: L | M84: 0 | N84: L | O84: 0
A85: Wk21 | B85: 2019-02-18 | C85: Stanford 'Village' | G85: v | H85: Cholsey 'Canaries' | L85: =IF(E85=" "," ",IF(E85<4,"L",IF(E85=4,"D","W"))) -> L | M85: =F85-K85 -> 0 | N85: =IF(J85=" "," ",IF(J85<4,"L",IF(J85=4,"D","W"))) -> L | O85: =K85-F85 -> 0
A86: Wk21 | B86: 2019-02-20 | C86: Grove 'Grovelands' | G86: v | H86: Wootton 'Chiefs' | L86: L | M86: 0 | N86: L | O86: 0
A87: Wk21 | B87: 2019-02-21 | C87: Didcot Bowls Club 'Rams' | G87: v | H87: Chieveley | L87: L | M87: 0 | N87: L | O87: 0
A88: Wk21 | B88: 2019-02-21 | C88: Wallingford 'Royals' | G88: v | H88: Stanford 'Vale' | L88: L | M88: 0 | N88: L | O88: 0
A89: x | L89: L | M89: 0 | N89: L | O89: 0
A90: Wk22 | B90: 2019-02-25 | C90: Stanford 'Vale' | G90: v | H90: Grove 'Grovelands' | L90: L | M90: 0 | N90: L | O90: 0
A91: Wk22 | B91: 2019-02-26 | C91: Cholsey 'Canaries' | G91: v | H91: Wallingford 'Royals' | L91: L | M91: 0 | N91: L | O91: 0
A92: Wk22 | B92: 2019-02-27 | C92: Wootton 'Chiefs' | G92: v | H92: Didcot Bowls Club 'Rams' | L92: L | M92: 0 | N92: L | O92: 0
A93: Wk22 | B93: 2019-02-28 | C93: Chieveley | G93: v | H93: Warborough 'Wanderers' | L93: L | M93: 0 | N93: L | O93: 0
A94: x | L94: =IF(E94=" "," ",IF(E94<4,"L",IF(E94=4,"D","W"))) -> L | M94: =F94-K94 -> 0 | N94: =IF(J94=" "," ",IF(J94<4,"L",IF(J94=4,"D","W"))) -> L | O94: =K94-F94 -> 0
A95: Wk23 | B95: 2019-03-04 | C95: Stanford 'Village' | G95: v | H95: Chieveley | L95: W | M95: =F95-K95 -> 0 | N95: W | O95: =K95-F95 -> 0
A96: x | L96: =IF(E96=" "," ",IF(E96<4,"L",IF(E96=4,"D","W"))) -> L | M96: =F96-K96 -> 0 | N96: =IF(J96=" "," ",IF(J96<4,"L",IF(J96=4,"D","W"))) -> L | O96: =K96-F96 -> 0
A97: Wk24 | B97: 2019-03-11 | C97: Stanford 'Vale' | G97: v | H97: Wootton 'Chiefs' | L97: D | M97: 0 | N97: D | O97: 0
A98: Wk24 | B98: 2019-03-13 | C98: Grove 'Grovelands' | G98: v | H98: Cholsey 'Canaries' | L98: W | M98: =F98-K98 -> 0 | N98: W | O98: =K98-F98 -> 0
A99: Wk24 | B99: 2019-03-14 | C99: Warborough 'Wanderers' | G99: v | H99: Didcot Bowls Club 'Rams' | L99: W | M99: 0 | N99: W | O99: 0
A100: x | L100: W | M100: 0 | N100: W | O100: 0
A101: Wk25 | B101: 2019-03-19 | C101: Cholsey 'Canaries' | G101: v | H101: Stanford 'Vale' | L101: W | M101: 0 | N101: W | O101: 0
A102: Wk25 | B102: 2019-03-20 | C102: Wootton 'Chiefs' | G102: v | H102: Warborough 'Wanderers' | L102: W | M102: 0 | N102: W | O102: 0
A103: Wk25 | B103: 2019-03-21 | C103: Chieveley | G103: v | H103: Wallingford 'Royals' | L103: W | M103: 0 | N103: W | O103: 0
A104: Wk25 | B104: 2019-03-21 | C104: Didcot Bowls Club 'Rams' | G104: v | H104: Stanford 'Village' | L104: W | M104: 0 | N104: W | O104: 0
A105: x | L105: W | M105: 0 | N105: W | O105: 0
A106: Wk26 | B106: 2019-03-27 | C106: Grove 'Grovelands' | G106: v | H106: Chieveley | L106: W | M106: 0 | N106: W | O106: 0
A107: Wk26 | B107: 2019-03-27 | C107: Wootton 'Chiefs' | G107: v | H107: Cholsey 'Canaries' | L107: W | M107: 0 | N107: W | O107: 0
A108: Wk26 | B108: 2019-03-28 | C108: Warborough 'Wanderers' | G108: v | H108: Stanford 'Village' | L108: W | M108: 0 | N108: W | O108: 0
A109: x
A110: x
A111: x
A112: x
A113: x
A114: x
A115: x
A116: x
A117: x
A118: x
A119: x
A120: x
A121: x
A122: x
A123: x
A124: x
A125: x
A126: x
A127: x
A128: x
A129: x
A130: x
A131: x
A132: x
A133: x
A134: x
A135: x
A136: x
A137: x
A138: x
A139: x
A140: x
A141: x
A142: x
A143: x
A144: x
A145: x
A146: x
A147: x
A148: x
A149: x
A150: x
A151: x
A152: x

Sheet S&V Div 2
G1: South & Vale - Division Two | P1: =SUM(K5:K14)/8 -> 35.0 | Q1: =INT(P1) -> 35.0
G2: Results For Season 2018-19
D3: Fixtures | I3: Shots
D4: Play | E4: W | F4: D | G4: L | H4: For | I4: Aga | J4: Diff | K4: Pts
B5: Abingdon 'Knights' | D5: =VLOOKUP($B5,$V$34:$Z$48,5,0)+VLOOKUP($B5,$V$19:$Z$31,5,0) -> 8 | E5: =VLOOKUP($B5,$V$34:$Z$48,4,0)+VLOOKUP($B5,$V$19:$Z$31,4,0) -> 6 | F5: =VLOOKUP($B5,$V$34:$Z$48,2,0)+VLOOKUP($B5,$V$19:$Z$31,2,0) -> 1 | G5: =VLOOKUP($B5,$V$34:$Z$48,3,0)+VLOOKUP($B5,$V$19:$Z$31,3,0) -> 1 | H5: =VLOOKUP($B5,$Q$19:$S$31,3,0)+VLOOKUP($B5,$Q$36:$S$48,3,0) -> 193 | I5: =H5-J5 -> 153 | J5: =VLOOKUP($B5,$Q$19:$T$31,4,0)+VLOOKUP($B5,$Q$36:$T$48,4,0) -> 40 | K5: =VLOOKUP($B5,$Q$19:$T$31,2,0)+VLOOKUP($B5,$Q$36:$T$48,2,0) -> 50 | P5: =(16-D5)*8+K5 -> 114
B6: Benson | D6: 8 | E6: 6 | F6: 0 | G6: 2 | H6: 207 | I6: 167 | J6: 40 | K6: 43 | P6: =(16-D6)*8+K6 -> 107
B7: Harwell 'Hares' | D7: 8 | E7: 5 | F7: 0 | G7: 3 | H7: 197 | I7: 177 | J7: 20 | K7: 40 | P7: 104
B8: Challow 'Windymillers' | D8: 7 | E8: 4 | F8: 1 | G8: 2 | H8: 170 | I8: 145 | J8: 25 | K8: 38 | P8: 110
B9: Hanney | D9: 8 | E9: 3 | F9: 0 | G9: 5 | H9: 183 | I9: 196 | J9: -13 | K9: 23 | P9: 87
B10: Harwell 'Harlequins' | D10: 8 | E10: 2 | F10: 1 | G10: 5 | H10: 171 | I10: 195 | J10: -24 | K10: 23 | P10: 87
B11: Wootton 'Warriors' | D11: 8 | E11: 3 | F11: 0 | G11: 5 | H11: 155 | I11: 192 | J11: -37 | K11: 23 | P11: 87
B12: S.O. 'Three Swans' | D12: 7 | E12: 2 | F12: 1 | G12: 4 | H12: 152 | I12: 153 | J12: -1 | K12: 22 | P12: 94
B13: Didcot Bowls Club 'Hounds' | D13: 8 | E13: 2 | F13: 0 | G13: 6 | H13: 141 | I13: 191 | J13: -50 | K13: 18 | P13: 82
B15: DATE | C15: Home | D15: . | E15: Pts | F15: Sht | G15: v | H15: Away | I15: . | J15: Pts | K15: Sht | L15: Result | M15: Diff | N15: Result | O15: Diff | V15: Sht | W15: (All)
A16: Wk 1 | B16: 2018-09-27 | C16: Benson | E16: 8 | F16: 30 | G16: v | H16: Hanney | J16: 0 | K16: 19 | L16: =IF(E16=" "," ",IF(E16<4,"L",IF(E16=4,"D","W"))) -> W | M16: =F16-K16 -> 11 | N16: =IF(J16=" "," ",IF(J16<4,"L",IF(J16=4,"D","W"))) -> L | O16: =K16-F16 -> -11 | Q16: Home
A17: x | L17: L | M17: 0 | N17: =IF(J17=" "," ",IF(J17<4,"L",IF(J17=4,"D","W"))) -> L | O17: 0 | R17: Values | V17: Count of Pts | W17: Column Labels
A18: Wk 2 | B18: 2018-10-01 | C18: Harwell 'Harlequins' | E18: 1 | F18: 18 | G18: v | H18: Benson | J18: 7 | K18: 36 | L18: L | M18: -18 | N18: =IF(J18=" "," ",IF(J18<4,"L",IF(J18=4,"D","W"))) -> W | O18: 18 | Q18: Row Labels | R18: Sum of Pts | S18: Sum of Sht | T18: Sum of Diff | V18: Row Labels | W18: D | X18: L | Y18: W | Z18: Grand Total
A19: Wk 2 | B19: 2018-10-03 | C19: Wootton 'Warriors' | E19: 0 | F19: 15 | G19: v | H19: Harwell 'Hares' | J19: 8 | K19: 31 | L19: L | M19: -16 | N19: =IF(J19=" "," ",IF(J19<4,"L",IF(J19=4,"D","W"))) -> W | O19: 16 | Q19: Abingdon 'Knights' | R19: 22 | S19: 83 | T19: 15 | V19: Abingdon 'Knights' | X19: 1 | Y19: 3 | Z19: 4
A20: Wk 2 | B20: 2018-10-04 | C20: Abingdon 'Knights' | E20: 8 | F20: 27 | G20: v | H20: Didcot Bowls Club 'Hounds' | J20: 0 | K20: 12 | L20: W | M20: 15 | N20: L | O20: -15 | Q20: Benson | R20: 14 | S20: 76 | T20: 7 | V20: Benson | X20: 1 | Y20: 2 | Z20: 3
A21: x | L21: L | M21: 0 | N21: L | O21: 0 | Q21: Challow 'Windymillers' | R21: 34 | S21: 131 | T21: 35 | V21: Challow 'Windymillers' | W21: 1 | Y21: 4 | Z21: 5
A22: Wk 3 | B22: 2018-10-08 | C22: Harwell 'Harlequins' | E22: 0 | F22: 16 | G22: v | H22: Harwell 'Hares' | J22: 8 | K22: 30 | L22: L | M22: -14 | N22: W | O22: 14 | Q22: Didcot Bowls Club 'Hounds' | R22: 14 | S22: 58 | T22: 5 | V22: Didcot Bowls Club 'Hounds' | X22: 1 | Y22: 2 | Z22: 3
A23: Wk 3 | B23: 2018-10-10 | C23: Hanney | E23: 6 | F23: 26 | G23: v | H23: Challow 'Windymillers' | J23: 2 | K23: 18 | L23: W | M23: 8 | N23: L | O23: -8 | Q23: Hanney | R23: 20 | S23: 116 | T23: 34 | V23: Hanney | X23: 1 | Y23: 3 | Z23: 4
A24: Wk 3 | B24: 2018-10-11 | C24: Benson | E24: 0 | F24: 21 | G24: v | H24: Abingdon 'Knights' | J24: 8 | K24: 27 | L24: L | M24: -6 | N24: W | O24: 6 | Q24: Harwell 'Hares' | R24: 20 | S24: 97 | T24: 11 | V24: Harwell 'Hares' | X24: 1 | Y24: 3 | Z24: 4
A25: x | L25: L | M25: 0 | N25: =IF(J25=" "," ",IF(J25<4,"L",IF(J25=4,"D","W"))) -> L | O25: 0 | Q25: Harwell 'Harlequins' | R25: 21 | S25: 128 | T25: -1 | V25: Harwell 'Harlequins' | W25: 1 | X25: 2 | Y25: 2 | Z25: 5
A26: Wk 4 | B26: 2018-10-15 | C26: Harwell 'Hares' | E26: 8 | F26: 34 | G26: v | H26: S.O. 'Three Swans' | J26: 0 | K26: 20 | L26: W | M26: 14 | N26: L | O26: -14 | Q26: S.O. 'Three Swans' | R26: 14 | S26: 77 | T26: 25 | V26: S.O. 'Three Swans' | X26: 1 | Y26: 2 | Z26: 3
A27: Wk 4 | B27: 2018-10-17 | C27: Challow 'Windymillers' | E27: 6 | F27: 23 | G27: v | H27: Didcot Bowls Club 'Hounds' | J27: 2 | K27: 19 | L27: W | M27: 4 | N27: L | O27: -4 | Q27: Wootton 'Warriors' | R27: 15 | S27: 83 | T27: -2 | V27: Wootton 'Warriors' | X27: 2 | Y27: 2 | Z27: 4
A28: Wk 4 | B28: 2018-10-17 | C28: Wootton 'Warriors' | E28: 7 | F28: 26 | G28: v | H28: Hanney | J28: 1 | K28: 17 | L28: W | M28: 9 | N28: L | O28: -9 | Q28: (blank) | T28: 0 | V28: (blank)
A29: Wk 4 | B29: 2018-10-18 | C29: Abingdon 'Knights' | E29: 6 | F29: 18 | G29: v | H29: Harwell 'Harlequins' | J29: 2 | K29: 17 | L29: W | M29: 1 | N29: L | O29: -1 | Q29: Grand Total | R29: 174 | S29: 849 | T29: 129 | V29: Grand Total | W29: 2 | X29: 10 | Y29: 23 | Z29: 35
A30: x | L30: L | M30: 0 | N30: L | O30: 0
A31: Wk 6 | B31: 2018-10-29 | C31: Harwell 'Harlequins' | E31: 4 | F31: 26 | G31: v | H31: S.O. 'Three Swans' | J31: 4 | K31: 26 | L31: D | M31: 0 | N31: D | O31: 0
A32: Wk 6 | B32: 2018-10-30 | C32: Challow 'Windymillers' | E32: 8 | F32: 28 | G32: v | H32: Benson | J32: 0 | K32: 19 | L32: W | M32: 9 | N32: L | O32: -9
A33: Wk 6 | B33: 2018-10-31 | C33: Hanney | E33: 6 | F33: 35 | G33: v | H33: Harwell 'Hares' | J33: 2 | K33: 16 | L33: W | M33: 19 | N33: L | O33: -19
A34: Wk 6 | B34: 2018-11-01 | C34: Didcot Bowls Club 'Hounds' | E34: 8 | F34: 23 | G34: v | H34: Wootton 'Warriors' | J34: 0 | K34: 15 | L34: W | M34: 8 | N34: L | O34: -8 | R34: Values | V34: Count of Pts | W34: Column Labels
A35: x | L35: L | M35: 0 | N35: L | O35: 0 | Q35: Row Labels | R35: Sum of Pts | S35: Sum of Sht | T35: Sum of Diff2 | V35: Row Labels | W35: D | X35: L | Y35: W | Z35: Grand Total
A36: Wk 7 | B36: 2018-11-05 | C36: Harwell 'Hares' | E36: 6 | F36: 25 | G36: v | H36: Didcot Bowls Club 'Hounds' | J36: 2 | K36: 18 | L36: W | M36: 7 | N36: L | O36: -7 | Q36: Abingdon 'Knights' | R36: 28 | S36: 110 | T36: 25 | V36: Abingdon 'Knights' | W36: 1 | Y36: 3 | Z36: 4
A37: Wk 7 | B37: 2018-11-05 | C37: S.O. 'Three Swans' | E37: 6 | F37: 26 | G37: v | H37: Hanney | J37: 2 | K37: 15 | L37: W | M37: 11 | N37: L | O37: -11 | Q37: Benson | R37: 29 | S37: 131 | T37: 33 | V37: Benson | X37: 1 | Y37: 4 | Z37: 5
A38: Wk 7 | B38: 2018-11-06 | C38: Challow 'Windymillers' | E38: 4 | F38: 21 | G38: v | H38: Abingdon 'Knights' | J38: 4 | K38: 21 | L38: D | M38: 0 | N38: D | O38: 0 | Q38: Challow 'Windymillers' | R38: 4 | S38: 39 | T38: -10 | V38: Challow 'Windymillers' | X38: 2 | Z38: 2
A39: Wk 7 | B39: 2018-11-07 | C39: Wootton 'Warriors' | E39: 0 | F39: 19 | G39: v | H39: Benson | J39: 8 | K39: 29 | L39: L | M39: -10 | N39: W | O39: 10 | Q39: Didcot Bowls Club 'Hounds' | R39: 4 | S39: 83 | T39: -55 | V39: Didcot Bowls Club 'Hounds' | X39: 5 | Z39: 5
A40: x | L40: L | M40: 0 | N40: L | O40: 0 | Q40: Hanney | R40: 3 | S40: 67 | T40: -47 | V40: Hanney | X40: 4 | Z40: 4
A41: Wk 8 | B41: 2018-11-12 | C41: Harwell 'Harlequins' | E41: 8 | F41: 32 | G41: v | H41: Hanney | J41: 0 | K41: 16 | L41: W | M41: 16 | N41: L | O41: -16 | Q41: Harwell 'Hares' | R41: 20 | S41: 100 | T41: 9 | V41: Harwell 'Hares' | X41: 2 | Y41: 2 | Z41: 4
A42: Wk 8 | B42: 2018-11-15 | C42: Abingdon 'Knights' | E42: 2 | F42: 17 | G42: v | H42: Wootton 'Warriors' | J42: 6 | K42: 24 | L42: L | M42: -7 | N42: W | O42: 7 | Q42: Harwell 'Harlequins' | R42: 2 | S42: 43 | T42: -23 | V42: Harwell 'Harlequins' | X42: 3 | Z42: 3
A43: Wk 8 | B43: 2018-11-15 | C43: Benson | E43: 6 | F43: 25 | G43: v | H43: Harwell 'Hares' | J43: 2 | K43: 23 | L43: W | M43: 2 | N43: L | O43: -2 | Q43: S.O. 'Three Swans' | R43: 8 | S43: 75 | T43: -26 | V43: S.O. 'Three Swans' | W43: 1 | X43: 3 | Z43: 4
A44: Wk 8 | B44: 2018-11-15 | C44: Didcot Bowls Club 'Hounds' | E44: 6 | F44: 20 | G44: v | H44: S.O. 'Three Swans' | J44: 2 | K44: 14 | L44: W | M44: 6 | N44: L | O44: -6 | Q44: Wootton 'Warriors' | R44: 8 | S44: 72 | T44: -35 | V44: Wootton 'Warriors' | X44: 3 | Y44: 1 | Z44: 4
A45: x | L45: L | M45: 0 | N45: L | O45: 0 | Q45: (blank) | T45: 0 | V45: (blank)
A46: Wk10 | B46: 2018-11-26 | C46: Harwell 'Hares' | E46: 0 | F46: 15 | G46: v | H46: Abingdon 'Knights' | J46: 8 | K46: 27 | L46: L | M46: -12 | N46: W | O46: 12 | Q46: Grand Total | R46: 106 | S46: 720 | T46: -129 | V46: Grand Total | W46: 2 | X46: 23 | Y46: 10 | Z46: 35
A47: Wk10 | B47: 2018-11-26 | C47: S.O. 'Three Swans' | E47: 2 | F47: 18 | G47: v | H47: Benson | J47: 6 | K47: 23 | L47: L | M47: -5 | N47: W | O47: 5
A48: Wk10 | B48: 2018-11-27 | C48: Challow 'Windymillers' | E48: 8 | F48: 25 | G48: v | H48: Harwell 'Harlequins' | J48: 0 | K48: 18 | L48: =IF(E48=" "," ",IF(E48<4,"L",IF(E48=4,"D","W"))) -> W | M48: =F48-K48 -> 7 | N48: L | O48: =K48-F48 -> -7
A49: Wk10 | B49: 2018-11-28 | C49: Hanney | E49: 8 | F49: 27 | G49: v | H49: Didcot Bowls Club 'Hounds' | J49: 0 | K49: 13 | L49: W | M49: 14 | N49: L | O49: -14
A50: x | L50: L | M50: 0 | N50: L | O50: 0
A51: Wk11 | B51: 2018-12-03 | C51: Harwell 'Harlequins' | E51: 8 | F51: 36 | G51: v | H51: Didcot Bowls Club 'Hounds' | J51: 0 | K51: 21 | L51: W | M51: 15 | N51: L | O51: -15
A52: Wk11 | B52: 2018-12-04 | C52: Challow 'Windymillers' | E52: 8 | F52: 34 | G52: v | H52: Wootton 'Warriors' | J52: 0 | K52: 19 | L52: W | M52: 15 | N52: L | O52: -15
A53: Wk11 | B53: 2018-12-06 | C53: Abingdon 'Knights' | E53: 6 | F53: 21 | G53: v | H53: S.O. 'Three Swans' | J53: 2 | K53: 15 | L53: W | M53: 6 | N53: L | O53: -6
A54: x | L54: L | M54: 0 | N54: L | O54: 0
A55: Wk12 | B55: 2018-12-10 | C55: Harwell 'Hares' | E55: 6 | F55: 23 | G55: v | H55: Challow 'Windymillers' | J55: 2 | K55: 21 | L55: W | M55: 2 | N55: L | O55: -2
A56: Wk12 | B56: 2018-12-12 | C56: Hanney | E56: 0 | F56: 28 | G56: v | H56: Abingdon 'Knights' | J56: 8 | K56: 35 | L56: L | M56: -7 | N56: W | O56: 7
A57: Wk12 | B57: 2018-12-12 | C57: Wootton 'Warriors' | E57: 8 | F57: 23 | G57: v | H57: Harwell 'Harlequins' | J57: 0 | K57: 8 | L57: W | M57: 15 | N57: L | O57: -15
A58: Wk12 | B58: 2018-12-13 | C58: Didcot Bowls Club 'Hounds' | E58: 0 | F58: 15 | G58: v | H58: Benson | J58: 8 | K58: 24 | L58: L | M58: -9 | N58: W | O58: 9
A59: x | L59: L | M59: 0 | N59: L | O59: 0
A60: Wk13 | B60: 2018-12-17 | C60: S.O. 'Three Swans' | E60: 6 | F60: 33 | G60: v | H60: Wootton 'Warriors' | J60: 2 | K60: 14 | L60: W | M60: 19 | N60: L | O60: -19
A61: x | L61: L | M61: 0 | N61: L | O61: 0
A62: Wk16 | B62: 2019-01-14 | C62: Harwell 'Hares' | G62: v | H62: Harwell 'Harlequins' | L62: L | M62: 0 | N62: L | O62: 0
A63: Wk16 | B63: 2019-01-15 | C63: Challow 'Windymillers' | G63: v | H63: Hanney | L63: L | M63: 0 | N63: L | O63: 0
A64: Wk16 | B64: 2019-01-16 | C64: Wootton 'Warriors' | G64: v | H64: S.O. 'Three Swans' | L64: L | M64: 0 | N64: L | O64: 0
A65: Wk16 | B65: 2019-01-17 | C65: Abingdon 'Knights' | G65: v | H65: Benson | L65: L | M65: 0 | N65: =IF(J65=" "," ",IF(J65<4,"L",IF(J65=4,"D","W"))) -> L | O65: 0
A66: x | L66: L | M66: 0 | N66: L | O66: 0
A67: Wk17 | B67: 2019-01-21 | C67: Harwell 'Harlequins' | G67: v | H67: Abingdon 'Knights' | L67: L | M67: 0 | N67: =IF(J67=" "," ",IF(J67<4,"L",IF(J67=4,"D","W"))) -> L | O67: 0
A68: Wk17 | B68: 2019-01-23 | C68: Hanney | G68: v | H68: Wootton 'Warriors' | L68: =IF(E68=" "," ",IF(E68<4,"L",IF(E68=4,"D","W"))) -> L | M68: =F68-K68 -> 0 | N68: =IF(J68=" "," ",IF(J68<4,"L",IF(J68=4,"D","W"))) -> L | O68: =K68-F68 -> 0
A69: Wk17 | B69: 2019-01-23 | C69: S.O. 'Three Swans' | G69: v | H69: Harwell 'Hares' | L69: L | M69: 0 | N69: =IF(J69=" "," ",IF(J69<4,"L",IF(J69=4,"D","W"))) -> L | O69: 0
A70: Wk17 | B70: 2019-01-24 | C70: Didcot Bowls Club 'Hounds' | G70: v | H70: Challow 'Windymillers' | L70: L | M70: 0 | N70: L | O70: 0
A71: x | L71: L | M71: 0 | N71: L | O71: 0
A72: Wk18 | B72: 2019-01-28 | C72: Harwell 'Hares' | G72: v | H72: Hanney | L72: L | M72: 0 | N72: L | O72: 0
A73: Wk18 | B73: 2019-01-28 | C73: S.O. 'Three Swans' | G73: v | H73: Harwell 'Harlequins' | L73: L | M73: 0 | N73: L | O73: 0
A74: Wk18 | B74: 2019-01-31 | C74: Benson | G74: v | H74: Challow 'Windymillers' | L74: L | M74: 0 | N74: L | O74: 0
A75: x | L75: L | M75: 0 | N75: L | O75: 0
A76: Wk20 | B76: 2019-02-13 | C76: Hanney | G76: v | H76: S.O. 'Three Swans' | L76: L | M76: 0 | N76: L | O76: 0
A77: Wk20 | B77: 2019-02-14 | C77: Abingdon 'Knights' | G77: v | H77: Challow 'Windymillers' | L77: =IF(E77=" "," ",IF(E77<4,"L",IF(E77=4,"D","W"))) -> L | M77: =F77-K77 -> 0 | N77: L | O77: =K77-F77 -> 0
A78: Wk20 | B78: 2019-02-14 | C78: Benson | G78: v | H78: Wootton 'Warriors' | L78: L | M78: 0 | N78: =IF(J78=" "," ",IF(J78<4,"L",IF(J78=4,"D","W"))) -> L | O78: 0
A79: Wk20 | B79: 2019-02-14 | C79: Didcot Bowls Club 'Hounds' | G79: v | H79: Harwell 'Hares' | L79: L | M79: 0 | N79: L | O79: 0
A80: x | L80: L | M80: 0 | N80: L | O80: 0
A81: Wk21 | B81: 2019-02-18 | C81: Harwell 'Hares' | G81: v | H81: Benson | L81: L | M81: 0 | N81: L | O81: 0
A82: Wk21 | B82: 2019-02-18 | C82: S.O. 'Three Swans' | G82: v | H82: Didcot Bowls Club 'Hounds' | L82: L | M82: 0 | N82: L | O82: 0
A83: Wk21 | B83: 2019-02-20 | C83: Hanney | G83: v | H83: Harwell 'Harlequins' | L83: L | M83: 0 | N83: L | O83: 0
A84: Wk21 | B84: 2019-02-20 | C84: Wootton 'Warriors' | G84: v | H84: Abingdon 'Knights' | L84: L | M84: 0 | N84: L | O84: 0
A85: x | L85: L | M85: 0 | N85: L | O85: 0
A86: Wk22 | B86: 2019-02-25 | C86: Harwell 'Harlequins' | G86: v | H86: Challow 'Windymillers' | L86: L | M86: 0 | N86: L | O86: 0
A87: Wk22 | B87: 2019-02-28 | C87: Abingdon 'Knights' | G87: v | H87: Harwell 'Hares' | L87: L | M87: 0 | N87: L | O87: 0
A88: Wk22 | B88: 2019-02-28 | C88: Benson | G88: v | H88: S.O. 'Three Swans' | L88: L | M88: 0 | N88: L | O88: 0
A89: Wk22 | B89: 2019-02-28 | C89: Didcot Bowls Club 'Hounds' | G89: v | H89: Hanney | L89: L | M89: 0 | N89: L | O89: 0
A90: x | L90: L | M90: 0 | N90: L | O90: 0
A91: Wk23 | B91: 2019-03-05 | C91: Challow 'Windymillers' | G91: v | H91: S.O. 'Three Swans' | L91: L | M91: 0 | N91: L | O91: 0
A92: Wk23 | B92: 2019-03-06 | C92: Wootton 'Warriors' | G92: v | H92: Didcot Bowls Club 'Hounds' | L92: =IF(E92=" "," ",IF(E92<4,"L",IF(E92=4,"D","W"))) -> L | M92: =F92-K92 -> 0 | N92: =IF(J92=" "," ",IF(J92<4,"L",IF(J92=4,"D","W"))) -> L | O92: =K92-F92 -> 0
A93: x | L93: L | M93: 0 | N93: L | O93: 0
A94: Wk24 | B94: 2019-03-11 | C94: S.O. 'Three Swans' | G94: v | H94: Abingdon 'Knights' | L94: =IF(E94=" "," ",IF(E94<4,"L",IF(E94=4,"D","W"))) -> L | M94: =F94-K94 -> 0 | N94: =IF(J94=" "," ",IF(J94<4,"L",IF(J94=4,"D","W"))) -> L | O94: =K94-F94 -> 0
A95: Wk24 | B95: 2019-03-13 | C95: Hanney | G95: v | H95: Benson | L95: =IF(E95=" "," ",IF(E95<4,"L",IF(E95=4,"D","W"))) -> L | M95: =F95-K95 -> 0 | N95: =IF(J95=" "," ",IF(J95<4,"L",IF(J95=4,"D","W"))) -> L | O95: =K95-F95 -> 0
A96: Wk24 | B96: 2019-03-13 | C96: Wootton 'Warriors' | G96: v | H96: Challow 'Windymillers' | L96: L | M96: 0 | N96: L | O96: 0
A97: Wk24 | B97: 2019-03-14 | C97: Didcot Bowls Club 'Hounds' | G97: v | H97: Harwell 'Harlequins' | L97: L | M97: 0 | N97: L | O97: 0
A98: x | L98: L | M98: 0 | N98: L | O98: 0
A99: Wk25 | B99: 2019-03-18 | C99: Harwell 'Harlequins' | G99: v | H99: Wootton 'Warriors' | L99: L | M99: 0 | N99: L | O99: 0
A100: Wk25 | B100: 2019-03-19 | C100: Challow 'Windymillers' | G100: v | H100: Harwell 'Hares' | L100: L | M100: 0 | N100: =IF(J100=" "," ",IF(J100<4,"L",IF(J100=4,"D","W"))) -> L | O100: 0
A101: Wk25 | B101: 2019-03-21 | C101: Abingdon 'Knights' | G101: v | H101: Hanney | L101: L | M101: 0 | N101: =IF(J101=" "," ",IF(J101<4,"L",IF(J101=4,"D","W"))) -> L | O101: 0
A102: Wk25 | B102: 2019-03-21 | C102: Benson | G102: v | H102: Didcot Bowls Club 'Hounds' | L102: L | M102: 0 | N102: L | O102: 0
A103: x | L103: L | M103: 0 | N103: L | O103: 0
A104: Wk26 | B104: 2019-03-25 | C104: Harwell 'Hares' | G104: v | H104: Wootton 'Warriors' | L104: L | M104: 0 | N104: L | O104: 0
A105: Wk26 | B105: 2019-03-25 | C105: S.O. 'Three Swans' | G105: v | H105: Challow 'Windymillers' | L105: L | M105: 0 | N105: L | O105: 0
A106: Wk26 | B106: 2019-03-27 | C106: Benson | G106: v | H106: Harwell 'Harlequins' | L106: L | M106: 0 | N106: L | O106: 0
A107: Wk26 | B107: 2019-03-28 | C107: Didcot Bowls Club 'Hounds' | G107: v | H107: Abingdon 'Knights' | L107: L | M107: 0 | N107: =IF(J107=" "," ",IF(J107<4,"L",IF(J107=4,"D","W"))) -> L | O107: 0
A108: x | L108: L | M108: 0 | N108: =IF(J108=" "," ",IF(J108<4,"L",IF(J108=4,"D","W"))) -> L | O108: 0
A109: x | L109: W | M109: 0 | N109: W | O109: 0
A110: x | L110: D | M110: 0 | N110: D | O110: 0
A111: x
A112: x
A113: x
A114: x
A115: x
A116: x
A117: x
A118: x
A119: x
A120: x
A121: x
A122: x
A123: x
A124: x
A125: x
A126: x
A127: x
A128: x
A129: x
A130: x
A131: x
A132: x
A133: x
A134: x
A135: x
A136: x
A137: x
A138: x
A139: x
A140: x
A141: x
A142: x
A143: x
A144: x
A145: x
A146: x
A147: x
A148: x
A149: x
A150: x
A151: x

Sheet West Oxon
G1: West Oxon | P1: =SUM(K5:K15)/8 -> 55.0 | Q1: =INT(P1) -> 55.0
G2: Results For Season 2018-19
D3: Fixtures | I3: Shots | P3: =SUBTOTAL(9,P4:P15)/8 -> 166.0 | Q3: Games
D4: Play | E4: W | F4: D | G4: L | H4: For | I4: Aga | J4: Diff | K4: Pts
B5: Witney Mills 'The Weavers' | D5: =VLOOKUP($B5,$V$36:$Z$50,5,0)+VLOOKUP($B5,$V$21:$Z$33,5,0) -> 10 | E5: =VLOOKUP($B5,$V$36:$Z$50,4,0)+VLOOKUP($B5,$V$21:$Z$33,4,0) -> 9 | F5: =VLOOKUP($B5,$V$36:$Z$50,2,0)+VLOOKUP($B5,$V$21:$Z$33,2,0) -> 0 | G5: =VLOOKUP($B5,$V$36:$Z$50,3,0)+VLOOKUP($B5,$V$21:$Z$33,3,0) -> 1 | H5: =VLOOKUP($B5,$Q$21:$S$33,3,0)+VLOOKUP($B5,$Q$38:$S$50,3,0) -> 312 | I5: =H5-J5 -> 207 | J5: =VLOOKUP($B5,$Q$21:$T$33,4,0)+VLOOKUP($B5,$Q$38:$T$50,4,0) -> 105 | K5: =VLOOKUP($B5,$Q$21:$T$33,2,0)+VLOOKUP($B5,$Q$38:$T$50,2,0) -> 68 | P5: =(20-D5)*8+K5 -> 148
B6: North Leigh 'Millers' | D6: =VLOOKUP($B6,$V$36:$Z$50,5,0)+VLOOKUP($B6,$V$21:$Z$33,5,0) -> 10 | E6: =VLOOKUP($B6,$V$36:$Z$50,4,0)+VLOOKUP($B6,$V$21:$Z$33,4,0) -> 7 | F6: =VLOOKUP($B6,$V$36:$Z$50,2,0)+VLOOKUP($B6,$V$21:$Z$33,2,0) -> 0 | G6: =VLOOKUP($B6,$V$36:$Z$50,3,0)+VLOOKUP($B6,$V$21:$Z$33,3,0) -> 3 | H6: =VLOOKUP($B6,$Q$21:$S$33,3,0)+VLOOKUP($B6,$Q$38:$S$50,3,0) -> 348 | I6: =H6-J6 -> 226 | J6: =VLOOKUP($B6,$Q$21:$T$33,4,0)+VLOOKUP($B6,$Q$38:$T$50,4,0) -> 122 | K6: =VLOOKUP($B6,$Q$21:$T$33,2,0)+VLOOKUP($B6,$Q$38:$T$50,2,0) -> 58 | P6: 138
B7: Burford 'Lions' | D7: =VLOOKUP($B7,$V$36:$Z$50,5,0)+VLOOKUP($B7,$V$21:$Z$33,5,0) -> 10 | E7: =VLOOKUP($B7,$V$36:$Z$50,4,0)+VLOOKUP($B7,$V$21:$Z$33,4,0) -> 7 | F7: =VLOOKUP($B7,$V$36:$Z$50,2,0)+VLOOKUP($B7,$V$21:$Z$33,2,0) -> 0 | G7: =VLOOKUP($B7,$V$36:$Z$50,3,0)+VLOOKUP($B7,$V$21:$Z$33,3,0) -> 3 | H7: =VLOOKUP($B7,$Q$21:$S$33,3,0)+VLOOKUP($B7,$Q$38:$S$50,3,0) -> 305 | I7: =H7-J7 -> 250 | J7: =VLOOKUP($B7,$Q$21:$T$33,4,0)+VLOOKUP($B7,$Q$38:$T$50,4,0) -> 55 | K7: =VLOOKUP($B7,$Q$21:$T$33,2,0)+VLOOKUP($B7,$Q$38:$T$50,2,0) -> 52 | P7: 132
B8: Witney Mills 'The Millers' | D8: =VLOOKUP($B8,$V$36:$Z$50,5,0)+VLOOKUP($B8,$V$21:$Z$33,5,0) -> 10 | E8: =VLOOKUP($B8,$V$36:$Z$50,4,0)+VLOOKUP($B8,$V$21:$Z$33,4,0) -> 6 | F8: =VLOOKUP($B8,$V$36:$Z$50,2,0)+VLOOKUP($B8,$V$21:$Z$33,2,0) -> 0 | G8: =VLOOKUP($B8,$V$36:$Z$50,3,0)+VLOOKUP($B8,$V$21:$Z$33,3,0) -> 4 | H8: =VLOOKUP($B8,$Q$21:$S$33,3,0)+VLOOKUP($B8,$Q$38:$S$50,3,0) -> 289 | I8: =H8-J8 -> 267 | J8: =VLOOKUP($B8,$Q$21:$T$33,4,0)+VLOOKUP($B8,$Q$38:$T$50,4,0) -> 22 | K8: =VLOOKUP($B8,$Q$21:$T$33,2,0)+VLOOKUP($B8,$Q$38:$T$50,2,0) -> 44 | P8: 124
B9: Hanborough 'Herons' | D9: =VLOOKUP($B9,$V$36:$Z$50,5,0)+VLOOKUP($B9,$V$21:$Z$33,5,0) -> 10 | E9: =VLOOKUP($B9,$V$36:$Z$50,4,0)+VLOOKUP($B9,$V$21:$Z$33,4,0) -> 5 | F9: =VLOOKUP($B9,$V$36:$Z$50,2,0)+VLOOKUP($B9,$V$21:$Z$33,2,0) -> 0 | G9: =VLOOKUP($B9,$V$36:$Z$50,3,0)+VLOOKUP($B9,$V$21:$Z$33,3,0) -> 5 | H9: =VLOOKUP($B9,$Q$21:$S$33,3,0)+VLOOKUP($B9,$Q$38:$S$50,3,0) -> 269 | I9: =H9-J9 -> 262 | J9: =VLOOKUP($B9,$Q$21:$T$33,4,0)+VLOOKUP($B9,$Q$38:$T$50,4,0) -> 7 | K9: =VLOOKUP($B9,$Q$21:$T$33,2,0)+VLOOKUP($B9,$Q$38:$T$50,2,0) -> 41 | P9: 121
B10: Witney Town 'Canaries' | D10: =VLOOKUP($B10,$V$36:$Z$50,5,0)+VLOOKUP($B10,$V$21:$Z$33,5,0) -> 10 | E10: =VLOOKUP($B10,$V$36:$Z$50,4,0)+VLOOKUP($B10,$V$21:$Z$33,4,0) -> 5 | F10: =VLOOKUP($B10,$V$36:$Z$50,2,0)+VLOOKUP($B10,$V$21:$Z$33,2,0) -> 0 | G10: =VLOOKUP($B10,$V$36:$Z$50,3,0)+VLOOKUP($B10,$V$21:$Z$33,3,0) -> 5 | H10: =VLOOKUP($B10,$Q$21:$S$33,3,0)+VLOOKUP($B10,$Q$38:$S$50,3,0) -> 260 | I10: =H10-J10 -> 300 | J10: =VLOOKUP($B10,$Q$21:$T$33,4,0)+VLOOKUP($B10,$Q$38:$T$50,4,0) -> -40 | K10: =VLOOKUP($B10,$Q$21:$T$33,2,0)+VLOOKUP($B10,$Q$38:$T$50,2,0) -> 36 | P10: 116
B11: Witney Town 'Rams' | D11: =VLOOKUP($B11,$V$36:$Z$50,5,0)+VLOOKUP($B11,$V$21:$Z$33,5,0) -> 10 | E11: =VLOOKUP($B11,$V$36:$Z$50,4,0)+VLOOKUP($B11,$V$21:$Z$33,4,0) -> 5 | F11: =VLOOKUP($B11,$V$36:$Z$50,2,0)+VLOOKUP($B11,$V$21:$Z$33,2,0) -> 0 | G11: =VLOOKUP($B11,$V$36:$Z$50,3,0)+VLOOKUP($B11,$V$21:$Z$33,3,0) -> 5 | H11: =VLOOKUP($B11,$Q$21:$S$33,3,0)+VLOOKUP($B11,$Q$38:$S$50,3,0) -> 256 | I11: =H11-J11 -> 299 | J11: =VLOOKUP($B11,$Q$21:$T$33,4,0)+VLOOKUP($B11,$Q$38:$T$50,4,0) -> -43 | K11: =VLOOKUP($B11,$Q$21:$T$33,2,0)+VLOOKUP($B11,$Q$38:$T$50,2,0) -> 36 | P11: 116
B12: Hanborough 'Harriers' | D12: =VLOOKUP($B12,$V$36:$Z$50,5,0)+VLOOKUP($B12,$V$21:$Z$33,5,0) -> 10 | E12: =VLOOKUP($B12,$V$36:$Z$50,4,0)+VLOOKUP($B12,$V$21:$Z$33,4,0) -> 4 | F12: =VLOOKUP($B12,$V$36:$Z$50,2,0)+VLOOKUP($B12,$V$21:$Z$33,2,0) -> 0 | G12: =VLOOKUP($B12,$V$36:$Z$50,3,0)+VLOOKUP($B12,$V$21:$Z$33,3,0) -> 6 | H12: =VLOOKUP($B12,$Q$21:$S$33,3,0)+VLOOKUP($B12,$Q$38:$S$50,3,0) -> 253 | I12: =H12-J12 -> 259 | J12: =VLOOKUP($B12,$Q$21:$T$33,4,0)+VLOOKUP($B12,$Q$38:$T$50,4,0) -> -6 | K12: =VLOOKUP($B12,$Q$21:$T$33,2,0)+VLOOKUP($B12,$Q$38:$T$50,2,0) -> 35 | P12: 115
B13: Witney Town 'Woolies' | D13: =VLOOKUP($B13,$V$36:$Z$50,5,0)+VLOOKUP($B13,$V$21:$Z$33,5,0) -> 9 | E13: =VLOOKUP($B13,$V$36:$Z$50,4,0)+VLOOKUP($B13,$V$21:$Z$33,4,0) -> 3 | F13: =VLOOKUP($B13,$V$36:$Z$50,2,0)+VLOOKUP($B13,$V$21:$Z$33,2,0) -> 0 | G13: =VLOOKUP($B13,$V$36:$Z$50,3,0)+VLOOKUP($B13,$V$21:$Z$33,3,0) -> 6 | H13: =VLOOKUP($B13,$Q$21:$S$33,3,0)+VLOOKUP($B13,$Q$38:$S$50,3,0) -> 211 | I13: =H13-J13 -> 268 | J13: =VLOOKUP($B13,$Q$21:$T$33,4,0)+VLOOKUP($B13,$Q$38:$T$50,4,0) -> -57 | K13: =VLOOKUP($B13,$Q$21:$T$33,2,0)+VLOOKUP($B13,$Q$38:$T$50,2,0) -> 28 | P13: 116
B14: Charlbury 'Willows' | D14: =VLOOKUP($B14,$V$36:$Z$50,5,0)+VLOOKUP($B14,$V$21:$Z$33,5,0) -> 10 | E14: =VLOOKUP($B14,$V$36:$Z$50,4,0)+VLOOKUP($B14,$V$21:$Z$33,4,0) -> 2 | F14: =VLOOKUP($B14,$V$36:$Z$50,2,0)+VLOOKUP($B14,$V$21:$Z$33,2,0) -> 1 | G14: =VLOOKUP($B14,$V$36:$Z$50,3,0)+VLOOKUP($B14,$V$21:$Z$33,3,0) -> 7 | H14: =VLOOKUP($B14,$Q$21:$S$33,3,0)+VLOOKUP($B14,$Q$38:$S$50,3,0) -> 249 | I14: =H14-J14 -> 310 | J14: =VLOOKUP($B14,$Q$21:$T$33,4,0)+VLOOKUP($B14,$Q$38:$T$50,4,0) -> -61 | K14: =VLOOKUP($B14,$Q$21:$T$33,2,0)+VLOOKUP($B14,$Q$38:$T$50,2,0) -> 26 | P14: 106
B15: Charlbury 'Oaks' | D15: =VLOOKUP($B15,$V$36:$Z$50,5,0)+VLOOKUP($B15,$V$21:$Z$33,5,0) -> 10 | E15: =VLOOKUP($B15,$V$36:$Z$50,4,0)+VLOOKUP($B15,$V$21:$Z$33,4,0) -> 1 | F15: =VLOOKUP($B15,$V$36:$Z$50,2,0)+VLOOKUP($B15,$V$21:$Z$33,2,0) -> 1 | G15: =VLOOKUP($B15,$V$36:$Z$50,3,0)+VLOOKUP($B15,$V$21:$Z$33,3,0) -> 8 | H15: =VLOOKUP($B15,$Q$21:$S$33,3,0)+VLOOKUP($B15,$Q$38:$S$50,3,0) -> 245 | I15: =H15-J15 -> 326 | J15: =VLOOKUP($B15,$Q$21:$T$33,4,0)+VLOOKUP($B15,$Q$38:$T$50,4,0) -> -81 | K15: =VLOOKUP($B15,$Q$21:$T$33,2,0)+VLOOKUP($B15,$Q$38:$T$50,2,0) -> 16 | P15: 96
B17: DATE | C17: Home | D17: . | E17: Pts | F17: Sht | G17: v | H17: Away | I17: . | J17: Pts | K17: Sht | L17: Result | M17: Diff | N17: Result | O17: Diff | V17: Sht | W17: (All)
A18: Wk 2 | B18: 2018-10-02 | C18: Charlbury 'Willows' | E18: 0 | F18: 18 | G18: v | H18: Witney Town 'Canaries' | J18: 8 | K18: 31 | L18: =IF(E18=" "," ",IF(E18<4,"L",IF(E18=4,"D","W"))) -> L | M18: =F18-K18 -> -13 | N18: =IF(J18=" "," ",IF(J18<4,"L",IF(J18=4,"D","W"))) -> W | O18: =K18-F18 -> 13 | Q18: Home
A19: Wk 2 | B19: 2018-10-02 | C19: Hanborough 'Herons' | E19: 8 | F19: 28 | G19: v | H19: Witney Mills 'The Millers' | J19: 0 | K19: 20 | L19: W | M19: 8 | N19: =IF(J19=" "," ",IF(J19<4,"L",IF(J19=4,"D","W"))) -> L | O19: -8 | R19: Values | V19: Count of Pts | W19: Column Labels
A20: Wk 2 | B20: 2018-10-02 | C20: Witney Mills 'The Weavers' | E20: 8 | F20: 26 | G20: v | H20: Hanborough 'Harriers' | J20: 0 | K20: 20 | L20: W | M20: 6 | N20: L | O20: -6 | Q20: Row Labels | R20: Sum of Pts | S20: Sum of Sht | T20: Sum of Diff | V20: Row Labels | W20: D | X20: L | Y20: W | Z20: Grand Total
A21: Wk 2 | B21: 2018-10-02 | C21: Witney Town 'Rams' | E21: 6 | F21: 36 | G21: v | H21: Charlbury 'Oaks' | J21: 2 | K21: 26 | L21: W | M21: 10 | N21: L | O21: -10 | Q21: Burford 'Lions' | R21: 30 | S21: 148 | T21: 69 | V21: Burford 'Lions' | Y21: 4 | Z21: 4
A22: Wk 2 | B22: 2018-10-03 | C22: Witney Town 'Woolies' | E22: 2 | F22: 20 | G22: v | H22: Burford 'Lions' | J22: 6 | K22: 34 | L22: L | M22: -14 | N22: W | O22: 14 | Q22: Charlbury 'Oaks' | R22: 5 | S22: 103 | T22: -13 | V22: Charlbury 'Oaks' | W22: 1 | X22: 3 | Z22: 4
A23: x | L23: L | M23: 0 | N23: L | O23: 0 | Q23: Charlbury 'Willows' | R23: 14 | S23: 135 | T23: -4 | V23: Charlbury 'Willows' | X23: 4 | Y23: 1 | Z23: 5
A24: Wk 3 | B24: 2018-10-09 | C24: Burford 'Lions' | E24: 8 | F24: 34 | G24: v | H24: North Leigh 'Millers' | J24: 0 | K24: 24 | L24: W | M24: 10 | N24: L | O24: -10 | Q24: Hanborough 'Harriers' | R24: 20 | S24: 133 | T24: 6 | V24: Hanborough 'Harriers' | X24: 3 | Y24: 2 | Z24: 5
A25: Wk 3 | B25: 2018-10-09 | C25: Hanborough 'Harriers' | E25: 0 | F25: 13 | G25: v | H25: Hanborough 'Herons' | J25: 8 | K25: 28 | L25: L | M25: -15 | N25: W | O25: 15 | Q25: Hanborough 'Herons' | R25: 23 | S25: 165 | T25: 5 | V25: Hanborough 'Herons' | X25: 3 | Y25: 3 | Z25: 6
A26: Wk 3 | B26: 2018-10-09 | C26: Witney Mills 'The Millers' | E26: 8 | F26: 35 | G26: v | H26: Witney Town 'Canaries' | J26: 0 | K26: 19 | L26: W | M26: 16 | N26: L | O26: -16 | Q26: North Leigh 'Millers' | R26: 40 | S26: 200 | T26: 114 | V26: North Leigh 'Millers' | Y26: 5 | Z26: 5
A27: Wk 3 | B27: 2018-10-09 | C27: Witney Town 'Rams' | E27: 2 | F27: 23 | G27: v | H27: Witney Mills 'The Weavers' | J27: 6 | K27: 29 | L27: L | M27: -6 | N27: W | O27: 6 | Q27: Witney Mills 'The Millers' | R27: 36 | S27: 179 | T27: 79 | V27: Witney Mills 'The Millers' | Y27: 5 | Z27: 5
A28: x | L28: L | M28: 0 | N28: L | O28: 0 | Q28: Witney Mills 'The Weavers' | R28: 40 | S28: 197 | T28: 77 | V28: Witney Mills 'The Weavers' | X28: 1 | Y28: 5 | Z28: 6
A29: Wk 4 | B29: 2018-10-16 | C29: Charlbury 'Willows' | E29: 2 | F29: 27 | G29: v | H29: Burford 'Lions' | J29: 6 | K29: 30 | L29: L | M29: -3 | N29: W | O29: 3 | Q29: Witney Town 'Canaries' | R29: 16 | S29: 114 | T29: 4 | V29: Witney Town 'Canaries' | X29: 2 | Y29: 2 | Z29: 4
A30: Wk 4 | B30: 2018-10-16 | C30: Hanborough 'Herons' | E30: 2 | F30: 23 | G30: v | H30: Witney Town 'Rams' | J30: 6 | K30: 26 | L30: L | M30: -3 | N30: W | O30: 3 | Q30: Witney Town 'Rams' | R30: 24 | S30: 160 | T30: -17 | V30: Witney Town 'Rams' | X30: 3 | Y30: 3 | Z30: 6
A31: Wk 4 | B31: 2018-10-17 | C31: North Leigh 'Millers' | E31: 8 | F31: 42 | G31: v | H31: Charlbury 'Oaks' | J31: 0 | K31: 17 | L31: W | M31: 25 | N31: L | O31: -25 | Q31: Witney Town 'Woolies' | R31: 18 | S31: 125 | T31: -19 | V31: Witney Town 'Woolies' | X31: 3 | Y31: 2 | Z31: 5
A32: x | L32: L | M32: 0 | N32: L | O32: 0 | Q32: (blank) | T32: 0 | V32: (blank)
A33: Wk 5 | B33: 2018-10-23 | C33: Charlbury 'Oaks' | E33: 4 | F33: 34 | G33: v | H33: Charlbury 'Willows' | J33: 4 | K33: 34 | L33: D | M33: 0 | N33: D | O33: 0 | Q33: Grand Total | R33: 266 | S33: 1659 | T33: 301 | V33: Grand Total | W33: 1 | X33: 22 | Y33: 32 | Z33: 55
A34: Wk 5 | B34: 2018-10-23 | C34: Hanborough 'Harriers' | E34: 2 | F34: 24 | G34: v | H34: Witney Mills 'The Millers' | J34: 6 | K34: 32 | L34: L | M34: -8 | N34: W | O34: 8
A35: Wk 5 | B35: 2018-10-23 | C35: Witney Mills 'The Weavers' | E35: 2 | F35: 25 | G35: v | H35: Hanborough 'Herons' | J35: 6 | K35: 26 | L35: L | M35: -1 | N35: W | O35: 1
A36: Wk 5 | B36: 2018-10-23 | C36: Witney Town 'Rams' | E36: 0 | F36: 11 | G36: v | H36: North Leigh 'Millers' | J36: 8 | K36: 44 | L36: L | M36: -33 | N36: W | O36: 33 | R36: Values | V36: Count of Pts | W36: Column Labels
A37: Wk 5 | B37: 2018-10-24 | C37: Witney Town 'Woolies' | E37: 2 | F37: 25 | G37: v | H37: Witney Town 'Canaries' | J37: 6 | K37: 31 | L37: L | M37: -6 | N37: W | O37: 6 | Q37: Row Labels | R37: Sum of Pts | S37: Sum of Sht | T37: Sum of Diff2 | V37: Row Labels | W37: D | X37: L | Y37: W | Z37: Grand Total
A38: x | L38: L | M38: 0 | N38: L | O38: 0 | Q38: Burford 'Lions' | R38: 22 | S38: 157 | T38: -14 | V38: Burford 'Lions' | X38: 3 | Y38: 3 | Z38: 6
A39: Wk 6 | B39: 2018-10-30 | C39: Charlbury 'Willows' | E39: 2 | F39: 21 | G39: v | H39: Witney Town 'Rams' | J39: 6 | K39: 31 | L39: L | M39: -10 | N39: W | O39: 10 | Q39: Charlbury 'Oaks' | R39: 11 | S39: 142 | T39: -68 | V39: Charlbury 'Oaks' | X39: 5 | Y39: 1 | Z39: 6
A40: Wk 6 | B40: 2018-10-30 | C40: Hanborough 'Herons' | E40: 6 | F40: 26 | G40: v | H40: Burford 'Lions' | J40: 2 | K40: 25 | L40: W | M40: 1 | N40: L | O40: -1 | Q40: Charlbury 'Willows' | R40: 12 | S40: 114 | T40: -57 | V40: Charlbury 'Willows' | W40: 1 | X40: 3 | Y40: 1 | Z40: 5
A41: Wk 6 | B41: 2018-10-30 | C41: Witney Mills 'The Millers' | E41: 6 | F41: 25 | G41: v | H41: Witney Town 'Woolies' | J41: 2 | K41: 25 | L41: W | M41: 0 | N41: L | O41: 0 | Q41: Hanborough 'Harriers' | R41: 15 | S41: 120 | T41: -12 | V41: Hanborough 'Harriers' | X41: 3 | Y41: 2 | Z41: 5
A42: Wk 6 | B42: 2018-10-30 | C42: Witney Town 'Canaries' | E42: 8 | F42: 33 | G42: v | H42: Charlbury 'Oaks' | J42: 0 | K42: 30 | L42: W | M42: 3 | N42: L | O42: -3 | Q42: Hanborough 'Herons' | R42: 18 | S42: 104 | T42: 2 | V42: Hanborough 'Herons' | X42: 2 | Y42: 2 | Z42: 4
A43: Wk 6 | B43: 2018-10-31 | C43: North Leigh 'Millers' | E43: 8 | F43: 32 | G43: v | H43: Hanborough 'Harriers' | J43: 0 | K43: 22 | L43: W | M43: 10 | N43: L | O43: -10 | Q43: North Leigh 'Millers' | R43: 18 | S43: 148 | T43: 8 | V43: North Leigh 'Millers' | X43: 3 | Y43: 2 | Z43: 5
A44: x | L44: L | M44: 0 | N44: L | O44: 0 | Q44: Town 'Woolies' | R44: 0 | S44: 20 | T44: -23 | V44: Town 'Woolies' | X44: 1 | Z44: 1
A45: Wk 7 | B45: 2018-11-06 | C45: Witney Mills 'The Weavers' | E45: 8 | F45: 44 | G45: v | H45: Witney Town 'Woolies' | J45: 0 | K45: 12 | L45: W | M45: 32 | N45: L | O45: -32 | Q45: Witney Mills 'The Millers' | R45: 8 | S45: 110 | T45: -57 | V45: Witney Mills 'The Millers' | X45: 4 | Y45: 1 | Z45: 5
A46: Wk 7 | B46: 2018-11-07 | C46: Witney Town 'Woolies' | E46: 2 | F46: 27 | G46: v | H46: Charlbury 'Willows' | J46: 6 | K46: 28 | L46: L | M46: -1 | N46: W | O46: 1 | Q46: Witney Mills 'The Weavers' | R46: 28 | S46: 115 | T46: 28 | V46: Witney Mills 'The Weavers' | Y46: 4 | Z46: 4
A47: x | L47: L | M47: 0 | N47: L | O47: 0 | Q47: Witney Town 'Canaries' | R47: 20 | S47: 146 | T47: -44 | V47: Witney Town 'Canaries' | X47: 3 | Y47: 3 | Z47: 6
A48: Wk 8 | B48: 2018-11-13 | C48: Burford 'Lions' | E48: 8 | F48: 42 | G48: v | H48: Witney Town 'Canaries' | J48: 0 | K48: 16 | L48: W | M48: 26 | N48: L | O48: -26 | Q48: Witney Town 'Rams' | R48: 12 | S48: 96 | T48: -26 | V48: Witney Town 'Rams' | X48: 2 | Y48: 2 | Z48: 4
A49: Wk 8 | B49: 2018-11-13 | C49: Charlbury 'Oaks' | E49: 1 | F49: 23 | G49: v | H49: Hanborough 'Harriers' | J49: 7 | K49: 26 | L49: L | M49: -3 | N49: W | O49: 3 | Q49: Witney Town 'Woolies' | R49: 10 | S49: 86 | T49: -38 | V49: Witney Town 'Woolies' | X49: 3 | Y49: 1 | Z49: 4
A50: Wk 8 | B50: 2018-11-13 | C50: Hanborough 'Herons' | E50: 6 | F50: 35 | G50: v | H50: Charlbury 'Willows' | J50: 2 | K50: 26 | L50: =IF(E50=" "," ",IF(E50<4,"L",IF(E50=4,"D","W"))) -> W | M50: =F50-K50 -> 9 | N50: L | O50: =K50-F50 -> -9 | Q50: (blank) | T50: 0 | V50: (blank)
A51: Wk 8 | B51: 2018-11-13 | C51: Witney Mills 'The Weavers' | E51: 8 | F51: 31 | G51: v | H51: North Leigh 'Millers' | J51: 0 | K51: 25 | L51: W | M51: 6 | N51: L | O51: -6 | Q51: Grand Total | R51: 174 | S51: 1358 | T51: -301 | V51: Grand Total | W51: 1 | X51: 32 | Y51: 22 | Z51: 55
A52: Wk 8 | B52: 2018-11-13 | C52: Witney Town 'Rams' | E52: 6 | F52: 30 | G52: v | H52: Witney Mills 'The Millers' | J52: 2 | K52: 24 | L52: W | M52: 6 | N52: L | O52: -6
A53: x | L53: L | M53: 0 | N53: L | O53: 0
A54: Wk 9 | B54: 2018-11-20 | C54: Charlbury 'Willows' | E54: 2 | F54: 20 | G54: v | H54: Witney Mills 'The Weavers' | J54: 6 | K54: 28 | L54: L | M54: -8 | N54: W | O54: 8
A55: Wk 9 | B55: 2018-11-20 | C55: Hanborough 'Harriers' | E55: 2 | F55: 24 | G55: v | H55: Burford 'Lions' | J55: 6 | K55: 31 | L55: L | M55: -7 | N55: W | O55: 7
A56: Wk 9 | B56: 2018-11-20 | C56: Witney Mills 'The Millers' | E56: 8 | F56: 42 | G56: v | H56: Charlbury 'Oaks' | J56: 0 | K56: 18 | L56: W | M56: 24 | N56: L | O56: -24
A57: Wk 9 | B57: 2018-11-20 | C57: Witney Town 'Canaries' | E57: 6 | F57: 36 | G57: v | H57: Hanborough 'Herons' | J57: 2 | K57: 23 | L57: W | M57: 13 | N57: L | O57: -13
A58: Wk 9 | B58: 2018-11-21 | C58: North Leigh 'Millers' | E58: 8 | F58: 43 | G58: v | H58: Town 'Woolies' | J58: 0 | K58: 20 | L58: W | M58: 23 | N58: L | O58: -23
A59: x | L59: L | M59: 0 | N59: L | O59: 0
A60: Wk10 | B60: 2018-11-27 | C60: Burford 'Lions' | E60: 6 | F60: 30 | G60: v | H60: Charlbury 'Oaks' | J60: 2 | K60: 20 | L60: W | M60: 10 | N60: L | O60: -10
A61: Wk10 | B61: 2018-11-27 | C61: Hanborough 'Herons' | E61: 0 | F61: 26 | G61: v | H61: North Leigh 'Millers' | J61: 8 | K61: 32 | L61: L | M61: -6 | N61: W | O61: 6
A62: Wk10 | B62: 2018-11-27 | C62: Witney Mills 'The Weavers' | E62: 8 | F62: 36 | G62: v | H62: Witney Mills 'The Millers' | J62: 0 | K62: 15 | L62: W | M62: 21 | N62: L | O62: -21
A63: Wk10 | B63: 2018-11-27 | C63: Witney Town 'Rams' | E63: 2 | F63: 26 | G63: v | H63: Witney Town 'Canaries' | J63: 6 | K63: 32 | L63: L | M63: -6 | N63: W | O63: 6
A64: Wk10 | B64: 2018-11-28 | C64: Witney Town 'Woolies' | E64: 6 | F64: 25 | G64: v | H64: Hanborough 'Harriers' | J64: 2 | K64: 24 | L64: W | M64: 1 | N64: L | O64: -1
A65: x | L65: L | M65: 0 | N65: L | O65: 0
A66: Wk11 | B66: 2018-12-04 | C66: Charlbury 'Oaks' | E66: 0 | F66: 21 | G66: v | H66: Witney Town 'Woolies' | J66: 8 | K66: 27 | L66: L | M66: -6 | N66: W | O66: 6
A67: Wk11 | B67: 2018-12-04 | C67: Hanborough 'Harriers' | E67: 8 | F67: 36 | G67: v | H67: Witney Town 'Rams' | J67: 0 | K67: 20 | L67: W | M67: 16 | N67: L | O67: -16
A68: Wk11 | B68: 2018-12-04 | C68: Witney Mills 'The Millers' | E68: 8 | F68: 39 | G68: v | H68: Burford 'Lions' | J68: 0 | K68: 15 | L68: W | M68: 24 | N68: L | O68: -24
A69: Wk11 | B69: 2018-12-04 | C69: Witney Town 'Canaries' | E69: 0 | F69: 19 | G69: v | H69: Witney Mills 'The Weavers' | J69: 8 | K69: 29 | L69: L | M69: -10 | N69: =IF(J69=" "," ",IF(J69<4,"L",IF(J69=4,"D","W"))) -> W | O69: 10
A70: Wk11 | B70: 2018-12-05 | C70: North Leigh 'Millers' | E70: 8 | F70: 39 | G70: v | H70: Charlbury 'Willows' | J70: 0 | K70: 10 | L70: W | M70: 29 | N70: L | O70: -29
A71: x | L71: L | M71: 0 | N71: =IF(J71=" "," ",IF(J71<4,"L",IF(J71=4,"D","W"))) -> L | O71: 0
A72: Wk12 | B72: 2018-12-11 | C72: Charlbury 'Willows' | E72: 8 | F72: 49 | G72: v | H72: Witney Mills 'The Millers' | J72: 0 | K72: 19 | L72: W | M72: 30 | N72: =IF(J72=" "," ",IF(J72<4,"L",IF(J72=4,"D","W"))) -> L | O72: -30
A73: Wk12 | B73: 2018-12-11 | C73: Hanborough 'Herons' | E73: 1 | F73: 27 | G73: v | H73: Charlbury 'Oaks' | J73: 7 | K73: 31 | L73: L | M73: -4 | N73: W | O73: 4
A74: Wk12 | B74: 2018-12-11 | C74: Witney Mills 'The Weavers' | E74: 6 | F74: 35 | G74: v | H74: Burford 'Lions' | J74: 2 | K74: 22 | L74: W | M74: 13 | N74: L | O74: -13
A75: Wk12 | B75: 2018-12-11 | C75: Witney Town 'Rams' | E75: 8 | F75: 34 | G75: v | H75: Witney Town 'Woolies' | J75: 0 | K75: 22 | L75: W | M75: 12 | N75: L | O75: -12
A76: Wk12 | B76: 2018-12-12 | C76: North Leigh 'Millers' | E76: 8 | F76: 44 | G76: v | H76: Witney Town 'Canaries' | J76: 0 | K76: 17 | L76: W | M76: 27 | N76: L | O76: -27
A77: x | L77: =IF(E77=" "," ",IF(E77<4,"L",IF(E77=4,"D","W"))) -> L | M77: =F77-K77 -> 0 | N77: =IF(J77=" "," ",IF(J77<4,"L",IF(J77=4,"D","W"))) -> L | O77: =K77-F77 -> 0
A78: Wk13 | B78: 2018-12-18 | C78: Witney Town 'Canaries' | E78: 2 | F78: 26 | G78: v | H78: Hanborough 'Harriers' | J78: 6 | K78: 28 | L78: L | M78: -2 | N78: W | O78: 2
A79: x | L79: L | M79: 0 | N79: L | O79: 0
A80: Wk15 | B80: 2019-01-08 | C80: Burford 'Lions' | E80: 8 | F80: 42 | G80: v | H80: Witney Town 'Rams' | J80: 0 | K80: 19 | L80: W | M80: 23 | N80: L | O80: -23
A81: Wk15 | B81: 2019-01-08 | C81: Charlbury 'Oaks' | E81: 0 | F81: 25 | G81: v | H81: Witney Mills 'The Weavers' | J81: 8 | K81: 29 | L81: =IF(E81=" "," ",IF(E81<4,"L",IF(E81=4,"D","W"))) -> L | M81: =F81-K81 -> -4 | N81: W | O81: =K81-F81 -> 4
A82: Wk15 | B82: 2019-01-08 | C82: Hanborough 'Harriers' | E82: 8 | F82: 36 | G82: v | H82: Charlbury 'Willows' | J82: 0 | K82: 16 | L82: W | M82: 20 | N82: L | O82: -20
A83: Wk15 | B83: 2019-01-08 | C83: Witney Mills 'The Millers' | E83: 6 | F83: 38 | G83: v | H83: North Leigh 'Millers' | J83: 2 | K83: 23 | L83: W | M83: 15 | N83: L | O83: -15
A84: Wk15 | B84: 2019-01-09 | C84: Witney Town 'Woolies' | E84: 6 | F84: 28 | G84: v | H84: Hanborough 'Herons' | J84: 2 | K84: 27 | L84: W | M84: 1 | N84: =IF(J84=" "," ",IF(J84<4,"L",IF(J84=4,"D","W"))) -> L | O84: -1
A85: x | L85: L | M85: 0 | N85: L | O85: 0
A86: Wk16 | B86: 2019-01-15 | C86: Charlbury 'Willows' | G86: v | H86: Hanborough 'Harriers' | L86: L | M86: 0 | N86: L | O86: 0
A87: Wk16 | B87: 2019-01-15 | C87: Hanborough 'Herons' | G87: v | H87: Witney Town 'Woolies' | L87: L | M87: 0 | N87: L | O87: 0
A88: Wk16 | B88: 2019-01-15 | C88: Witney Mills 'The Weavers' | G88: v | H88: Charlbury 'Oaks' | L88: L | M88: 0 | N88: L | O88: 0
A89: Wk16 | B89: 2019-01-15 | C89: Witney Town 'Rams' | G89: v | H89: Burford 'Lions' | L89: L | M89: 0 | N89: L | O89: 0
A90: Wk16 | B90: 2019-01-16 | C90: North Leigh 'Millers' | G90: v | H90: Witney Mills 'The Millers' | L90: L | M90: 0 | N90: L | O90: 0
A91: x | L91: L | M91: 0 | N91: L | O91: 0
A92: Wk17 | B92: 2019-01-22 | C92: Burford 'Lions' | G92: v | H92: Witney Mills 'The Weavers' | L92: L | M92: 0 | N92: L | O92: 0
A93: Wk17 | B93: 2019-01-22 | C93: Charlbury 'Oaks' | G93: v | H93: Hanborough 'Herons' | L93: L | M93: 0 | N93: L | O93: 0
A94: Wk17 | B94: 2019-01-22 | C94: Witney Mills 'The Millers' | G94: v | H94: Charlbury 'Willows' | L94: L | M94: 0 | N94: L | O94: 0
A95: x | L95: L | M95: 0 | N95: L | O95: 0
A96: Wk18 | B96: 2019-01-29 | C96: Charlbury 'Willows' | G96: v | H96: Witney Town 'Woolies' | L96: L | M96: 0 | N96: L | O96: 0
A97: Wk18 | B97: 2019-01-29 | C97: Hanborough 'Herons' | G97: v | H97: Hanborough 'Harriers' | L97: L | M97: 0 | N97: L | O97: 0
A98: Wk18 | B98: 2019-01-29 | C98: Witney Mills 'The Weavers' | G98: v | H98: Witney Town 'Rams' | L98: L | M98: 0 | N98: L | O98: 0
A99: Wk18 | B99: 2019-01-29 | C99: Witney Town 'Canaries' | G99: v | H99: Witney Mills 'The Millers' | L99: L | M99: 0 | N99: L | O99: 0
A100: Wk18 | B100: 2019-01-30 | C100: North Leigh 'Millers' | G100: v | H100: Burford 'Lions' | L100: L | M100: 0 | N100: =IF(J100=" "," ",IF(J100<4,"L",IF(J100=4,"D","W"))) -> L | O100: 0
A101: x | L101: L | M101: 0 | N101: =IF(J101=" "," ",IF(J101<4,"L",IF(J101=4,"D","W"))) -> L | O101: 0
A102: Wk19 | B102: 2019-02-05 | C102: Burford 'Lions' | G102: v | H102: Charlbury 'Willows' | L102: L | M102: 0 | N102: L | O102: 0
A103: Wk19 | B103: 2019-02-05 | C103: Charlbury 'Oaks' | G103: v | H103: North Leigh 'Millers' | L103: L | M103: 0 | N103: L | O103: 0
A104: Wk19 | B104: 2019-02-05 | C104: Hanborough 'Harriers' | G104: v | H104: Witney Town 'Canaries' | L104: L | M104: 0 | N104: =IF(J104=" "," ",IF(J104<4,"L",IF(J104=4,"D","W"))) -> L | O104: 0
A105: Wk19 | B105: 2019-02-05 | C105: Witney Town 'Rams' | G105: v | H105: Hanborough 'Herons' | L105: L | M105: 0 | N105: =IF(J105=" "," ",IF(J105<4,"L",IF(J105=4,"D","W"))) -> L | O105: 0
A106: Wk19 | B106: 2019-02-06 | C106: Witney Town 'Woolies' | G106: v | H106: Witney Mills 'The Weavers' | L106: L | M106: 0 | N106: =IF(J106=" "," ",IF(J106<4,"L",IF(J106=4,"D","W"))) -> L | O106: 0
A107: x | L107: =IF(E107=" "," ",IF(E107<4,"L",IF(E107=4,"D","W"))) -> L | M107: =F107-K107 -> 0 | N107: =IF(J107=" "," ",IF(J107<4,"L",IF(J107=4,"D","W"))) -> L | O107: =K107-F107 -> 0
A108: Wk20 | B108: 2019-02-12 | C108: Witney Town 'Canaries' | G108: v | H108: North Leigh 'Millers' | L108: L | M108: 0 | N108: L | O108: 0
A109: Wk20 | B109: 2019-02-13 | C109: Witney Town 'Woolies' | G109: v | H109: Witney Town 'Rams' | L109: L | M109: 0 | N109: L | O109: 0
A110: x | L110: L | M110: 0 | N110: L | O110: 0
A111: Wk21 | B111: 2019-02-19 | C111: Charlbury 'Willows' | G111: v | H111: Charlbury 'Oaks' | L111: L | M111: 0 | N111: L | O111: 0
A112: Wk21 | B112: 2019-02-19 | C112: Hanborough 'Herons' | G112: v | H112: Witney Mills 'The Weavers' | L112: L | M112: 0 | N112: L | O112: 0
A113: Wk21 | B113: 2019-02-19 | C113: Witney Mills 'The Millers' | G113: v | H113: Hanborough 'Harriers' | L113: L | M113: 0 | N113: L | O113: 0
A114: Wk21 | B114: 2019-02-19 | C114: Witney Town 'Canaries' | G114: v | H114: Witney Town 'Woolies' | L114: =IF(E114=" "," ",IF(E114<4,"L",IF(E114=4,"D","W"))) -> L | M114: =F114-K114 -> 0 | N114: =IF(J114=" "," ",IF(J114<4,"L",IF(J114=4,"D","W"))) -> L | O114: =K114-F114 -> 0
A115: Wk21 | B115: 2019-02-20 | C115: North Leigh 'Millers' | G115: v | H115: Witney Town 'Rams' | L115: L | M115: 0 | N115: L | O115: 0
A116: x | L116: L | M116: 0 | N116: L | O116: 0
A117: Wk22 | B117: 2019-02-26 | C117: Burford 'Lions' | G117: v | H117: Hanborough 'Herons' | L117: L | M117: 0 | N117: L | O117: 0
A118: Wk22 | B118: 2019-02-26 | C118: Charlbury 'Oaks' | G118: v | H118: Witney Town 'Canaries' | L118: L | M118: 0 | N118: L | O118: 0
A119: Wk22 | B119: 2019-02-26 | C119: Hanborough 'Harriers' | G119: v | H119: North Leigh 'Millers' | L119: L | M119: 0 | N119: L | O119: 0
A120: Wk22 | B120: 2019-02-26 | C120: Witney Town 'Rams' | G120: v | H120: Charlbury 'Willows' | L120: L | M120: 0 | N120: L | O120: 0
A121: Wk22 | B121: 2019-02-27 | C121: Witney Town 'Woolies' | G121: v | H121: Witney Mills 'The Millers' | L121: L | M121: 0 | N121: L | O121: 0
A122: x | L122: L | M122: 0 | N122: L | O122: 0
A123: Wk23 | B123: 2019-03-05 | C123: Charlbury 'Willows' | G123: v | H123: Hanborough 'Herons' | L123: L | M123: 0 | N123: L | O123: 0
A124: Wk23 | B124: 2019-03-05 | C124: Hanborough 'Harriers' | G124: v | H124: Charlbury 'Oaks' | L124: L | M124: 0 | N124: L | O124: 0
A125: Wk23 | B125: 2019-03-05 | C125: Witney Mills 'The Millers' | G125: v | H125: Witney Town 'Rams' | L125: L | M125: 0 | N125: L | O125: 0
A126: Wk23 | B126: 2019-03-05 | C126: Witney Town 'Canaries' | G126: v | H126: Burford 'Lions' | L126: L | M126: 0 | N126: L | O126: 0
A127: Wk23 | B127: 2019-03-06 | C127: North Leigh 'Millers' | G127: v | H127: Witney Mills 'The Weavers' | L127: L | M127: 0 | N127: L | O127: 0
A128: x | L128: L | M128: 0 | N128: =IF(J128=" "," ",IF(J128<4,"L",IF(J128=4,"D","W"))) -> L | O128: 0
A129: Wk24 | B129: 2019-03-12 | C129: Burford 'Lions' | G129: v | H129: Hanborough 'Harriers' | L129: L | M129: 0 | N129: L | O129: 0
A130: Wk24 | B130: 2019-03-12 | C130: Charlbury 'Oaks' | G130: v | H130: Witney Mills 'The Millers' | L130: L | M130: 0 | N130: L | O130: 0
A131: Wk24 | B131: 2019-03-12 | C131: Hanborough 'Herons' | G131: v | H131: Witney Town 'Canaries' | L131: L | M131: 0 | N131: L | O131: 0
A132: Wk24 | B132: 2019-03-12 | C132: Witney Mills 'The Weavers' | G132: v | H132: Charlbury 'Willows' | L132: L | M132: 0 | N132: L | O132: 0
A133: Wk24 | B133: 2019-03-13 | C133: Witney Town 'Woolies' | G133: v | H133: North Leigh 'Millers' | L133: L | M133: 0 | N133: L | O133: 0
A134: x | L134: L | M134: 0 | N134: L | O134: 0
A135: Wk25 | B135: 2019-03-19 | C135: Charlbury 'Oaks' | G135: v | H135: Burford 'Lions' | L135: L | M135: 0 | N135: L | O135: 0
A136: Wk25 | B136: 2019-03-19 | C136: Hanborough 'Harriers' | G136: v | H136: Witney Town 'Woolies' | L136: L | M136: 0 | N136: L | O136: 0
A137: Wk25 | B137: 2019-03-19 | C137: Witney Mills 'The Millers' | G137: v | H137: Witney Mills 'The Weavers' | L137: L | M137: 0 | N137: L | O137: 0
A138: Wk25 | B138: 2019-03-19 | C138: Witney Town 'Canaries' | G138: v | H138: Witney Town 'Rams' | L138: L | M138: 0 | N138: L | O138: 0
A139: Wk25 | B139: 2019-03-20 | C139: North Leigh 'Millers' | G139: v | H139: Hanborough 'Herons' | L139: L | M139: 0 | N139: L | O139: 0
A140: x | L140: L | M140: 0 | N140: L | O140: 0
A141: Wk26 | B141: 2019-03-26 | C141: Burford 'Lions' | G141: v | H141: Witney Mills 'The Millers' | L141: L | M141: 0 | N141: L | O141: 0
A142: Wk26 | B142: 2019-03-26 | C142: Charlbury 'Willows' | G142: v | H142: North Leigh 'Millers' | L142: L | M142: 0 | N142: L | O142: 0
A143: Wk26 | B143: 2019-03-26 | C143: Witney Mills 'The Weavers' | G143: v | H143: Witney Town 'Canaries' | L143: L | M143: 0 | N143: L | O143: 0
A144: Wk26 | B144: 2019-03-26 | C144: Witney Town 'Rams' | G144: v | H144: Hanborough 'Harriers' | L144: L | M144: 0 | N144: L | O144: 0
A145: Wk26 | B145: 2019-03-27 | C145: Witney Town 'Woolies' | G145: v | H145: Charlbury 'Oaks' | L145: L | M145: 0 | N145: L | O145: 0
A146: x | L146: L | M146: =F146-K146 -> 0 | N146: L | O146: =K146-F146 -> 0
A147: Wk27 | B147: 2019-04-02 | C147: Burford 'Lions' | G147: v | H147: Witney Town 'Woolies' | L147: L | M147: 0 | N147: L | O147: 0
A148: Wk27 | B148: 2019-04-02 | C148: Charlbury 'Oaks' | G148: v | H148: Witney Town 'Rams' | L148: L | M148: 0 | N148: L | O148: 0
A149: Wk27 | B149: 2019-04-02 | C149: Hanborough 'Harriers' | G149: v | H149: Witney Mills 'The Weavers' | L149: L | M149: 0 | N149: L | O149: 0
A150: Wk27 | B150: 2019-04-02 | C150: Witney Mills 'The Millers' | G150: v | H150: Hanborough 'Herons' | L150: L | M150: 0 | N150: =IF(J150=" "," ",IF(J150<4,"L",IF(J150=4,"D","W"))) -> L | O150: 0
A151: Wk27 | B151: 2019-04-02 | C151: Witney Town 'Canaries' | G151: v | H151: Charlbury 'Willows' | L151: =IF(E151=" "," ",IF(E151<4,"L",IF(E151=4,"D","W"))) -> L | M151: =F151-K151 -> 0 | N151: =IF(J151=" "," ",IF(J151<4,"L",IF(J151=4,"D","W"))) -> L | O151: =K151-F151 -> 0
L152: W | M152: 0 | N152: W | O152: 0
L153: D | M153: =F153-K153 -> 0 | N153: D | O153: =K153-F153 -> 0

Sheet Afternoon Div 1
G1: Afternoon - Division One | P1: =SUM(K5:K14)/8 -> 35.0 | Q1: =INT(P1) -> 35.0
G2: Results For Season 2018-19
D3: Fixtures | I3: Shots | P3: =SUBTOTAL(9,P4:P13)/8 -> 109.0 | Q3: Games
D4: Play | E4: W | F4: D | G4: L | H4: For | I4: Aga | J4: Diff | K4: Pts
B5: Drayton 'Wasps' | D5: =VLOOKUP($B5,$V$34:$Z$48,5,0)+VLOOKUP($B5,$V$19:$Z$31,5,0) -> 8 | E5: =VLOOKUP($B5,$V$34:$Z$48,4,0)+VLOOKUP($B5,$V$19:$Z$31,4,0) -> 7 | F5: =VLOOKUP($B5,$V$34:$Z$48,2,0)+VLOOKUP($B5,$V$19:$Z$31,2,0) -> 0 | G5: =VLOOKUP($B5,$V$34:$Z$48,3,0)+VLOOKUP($B5,$V$19:$Z$31,3,0) -> 1 | H5: =VLOOKUP($B5,$Q$19:$S$31,3,0)+VLOOKUP($B5,$Q$36:$S$48,3,0) -> 218 | I5: =H5-J5 -> 146 | J5: =VLOOKUP($B5,$Q$19:$T$31,4,0)+VLOOKUP($B5,$Q$36:$T$48,4,0) -> 72 | K5: =VLOOKUP($B5,$Q$19:$T$31,2,0)+VLOOKUP($B5,$Q$36:$T$48,2,0) -> 51 | P5: =(16-D5)*8+K5 -> 115
B6: Didcot Bowls Club 'Red Kites' | D6: 8 | E6: 6 | F6: 0 | G6: 2 | H6: 185 | I6: 161 | J6: 24 | K6: 46 | P6: =(16-D6)*8+K6 -> 110
B7: Abingdon 'Park Rangers' | D7: 8 | E7: 5 | F7: 0 | G7: 3 | H7: 207 | I7: 168 | J7: 39 | K7: 40 | P7: 104
B8: Aston 'Astons' | D8: 8 | E8: 4 | F8: 0 | G8: 4 | H8: 179 | I8: 166 | J8: 13 | K8: 30 | P8: 94
B9: Harwell 'Eagles' | D9: 8 | E9: 4 | F9: 0 | G9: 4 | H9: 190 | I9: 194 | J9: -4 | K9: 27 | P9: 91
B10: Benson SMBC | D10: 8 | E10: 3 | F10: 0 | G10: 5 | H10: 154 | I10: 174 | J10: -20 | K10: 25 | P10: 89
B11: Woodcote 'Wings' | D11: 7 | E11: 2 | F11: 0 | G11: 5 | H11: 148 | I11: 160 | J11: -12 | K11: 22 | P11: 94
B12: Stanford 'Blues' | D12: 7 | E12: 2 | F12: 0 | G12: 5 | H12: 123 | I12: 178 | J12: -55 | K12: 20 | P12: 92
B13: Kingston 'Kites' | D13: 8 | E13: 2 | F13: 0 | G13: 6 | H13: 147 | I13: 204 | J13: -57 | K13: 19 | P13: 83
B15: DATE | C15: Home | D15: . | E15: Pts | F15: Sht | G15: v | H15: Away | I15: . | J15: Pts | K15: Sht | L15: Result | M15: Diff | N15: Result | O15: Diff | V15: Sht | W15: (All)
A16: Wk 1 | B16: 2018-09-26 | C16: Aston 'Astons' | E16: 0 | F16: 13 | G16: v | H16: Stanford 'Blues' | J16: 8 | K16: 24 | L16: =IF(E16=" "," ",IF(E16<4,"L",IF(E16=4,"D","W"))) -> L | M16: =F16-K16 -> -11 | N16: =IF(J16=" "," ",IF(J16<4,"L",IF(J16=4,"D","W"))) -> W | O16: =K16-F16 -> 11 | Q16: Home
A17: x | L17: L | M17: 0 | N17: L | O17: 0 | R17: Values | V17: Count of Pts | W17: Column Labels
A18: Wk 2 | B18: 2018-10-03 | C18: Kingston 'Kites' | E18: 8 | F18: 26 | G18: v | H18: Benson SMBC | J18: 0 | K18: 13 | L18: W | M18: 13 | N18: L | O18: -13 | Q18: Row Labels | R18: Sum of Pts | S18: Sum of Sht | T18: Sum of Diff | V18: Row Labels | W18: D | X18: L | Y18: W | Z18: Grand Total
A19: Wk 2 | B19: 2018-10-04 | C19: Harwell 'Eagles' | E19: 0 | F19: 19 | G19: v | H19: Drayton 'Wasps' | J19: 8 | K19: 40 | L19: L | M19: -21 | N19: W | O19: 21 | Q19: Abingdon 'Park Rangers' | R19: 22 | S19: 112 | T19: 42 | V19: Abingdon 'Park Rangers' | X19: 1 | Y19: 3 | Z19: 4
A20: Wk 2 | B20: 2018-10-04 | C20: Woodcote 'Wings' | E20: 0 | F20: 18 | H20: Abingdon 'Park Rangers' | J20: 8 | K20: 23 | L20: L | M20: -5 | N20: W | O20: 5 | Q20: Aston 'Astons' | R20: 16 | S20: 95 | T20: 15 | V20: Aston 'Astons' | X20: 2 | Y20: 2 | Z20: 4
A21: x | L21: L | M21: 0 | N21: L | O21: 0 | Q21: Benson SMBC | R21: 17 | S21: 90 | T21: 12 | V21: Benson SMBC | X21: 2 | Y21: 2 | Z21: 4
A22: Wk 3 | B22: 2018-10-09 | C22: Drayton 'Wasps' | E22: 8 | F22: 33 | G22: v | H22: Kingston 'Kites' | J22: 0 | K22: 9 | L22: W | M22: 24 | N22: L | O22: -24 | Q22: Didcot Bowls Club 'Red Kites' | R22: 30 | S22: 92 | T22: 24 | V22: Didcot Bowls Club 'Red Kites' | Y22: 4 | Z22: 4
A23: Wk 3 | B23: 2018-10-10 | C23: Didcot Bowls Club 'Red Kites' | E23: 8 | F23: 24 | G23: v | H23: Harwell 'Eagles' | J23: 0 | K23: 18 | L23: W | M23: 6 | N23: L | O23: -6 | Q23: Drayton 'Wasps' | R23: 22 | S23: 85 | T23: 42 | V23: Drayton 'Wasps' | Y23: 3 | Z23: 3
A24: Wk 3 | B24: 2018-10-11 | C24: Woodcote 'Wings' | E24: 2 | F24: 17 | H24: Aston 'Astons' | J24: 6 | K24: 24 | L24: L | M24: -7 | N24: W | O24: 7 | Q24: Harwell 'Eagles' | R24: 20 | S24: 130 | T24: 5 | V24: Harwell 'Eagles' | X24: 2 | Y24: 3 | Z24: 5
A25: Wk 3 | B25: 2018-10-12 | C25: Abingdon 'Park Rangers' | E25: 8 | F25: 24 | G25: v | H25: Benson SMBC | J25: 0 | K25: 8 | L25: W | M25: 16 | N25: L | O25: -16 | Q25: Kingston 'Kites' | R25: 18 | S25: 92 | T25: 9 | V25: Kingston 'Kites' | X25: 2 | Y25: 2 | Z25: 4
A26: x | L26: L | M26: 0 | N26: L | O26: 0 | Q26: Stanford 'Blues' | R26: 8 | S26: 41 | T26: 1 | V26: Stanford 'Blues' | X26: 1 | Y26: 1 | Z26: 2
A27: Wk 4 | B27: 2018-10-15 | C27: Benson SMBC | E27: 2 | F27: 21 | G27: v | H27: Drayton 'Wasps' | J27: 6 | K27: 26 | L27: L | M27: -5 | N27: W | O27: 5 | Q27: Woodcote 'Wings' | R27: 14 | S27: 108 | T27: -11 | V27: Woodcote 'Wings' | X27: 4 | Y27: 1 | Z27: 5
A28: Wk 4 | B28: 2018-10-17 | C28: Aston 'Astons' | E28: 6 | F28: 26 | G28: v | H28: Abingdon 'Park Rangers' | J28: 2 | K28: 21 | L28: W | M28: 5 | N28: L | O28: -5 | Q28: (blank) | T28: 0 | V28: (blank)
A29: Wk 4 | B29: 2018-10-17 | C29: Kingston 'Kites' | E29: 6 | F29: 23 | H29: Didcot Bowls Club 'Red Kites' | J29: 2 | K29: 22 | L29: W | M29: 1 | N29: L | O29: -1 | Q29: Grand Total | R29: 167 | S29: 845 | T29: 139 | V29: Grand Total | X29: 14 | Y29: 21 | Z29: 35
A30: x | L30: L | M30: 0 | N30: L | O30: 0
A31: Wk 5 | B31: 2018-10-26 | C31: Abingdon 'Park Rangers' | E31: 0 | F31: 18 | G31: v | H31: Didcot Bowls Club 'Red Kites' | J31: 8 | K31: 29 | L31: L | M31: -11 | N31: W | O31: 11
A32: x | L32: L | M32: 0 | N32: L | O32: 0
A33: Wk 6 | B33: 2018-10-30 | C33: Stanford 'Blues' | E33: 7 | F33: 23 | G33: v | H33: Kingston 'Kites' | J33: 1 | K33: 16 | L33: W | M33: 7 | N33: L | O33: -7
A34: Wk 6 | B34: 2018-10-31 | C34: Didcot Bowls Club 'Red Kites' | E34: 6 | F34: 22 | G34: v | H34: Benson SMBC | J34: 2 | K34: 17 | L34: W | M34: 5 | N34: L | O34: -5 | R34: Values | V34: Count of Pts | W34: Column Labels
A35: Wk 6 | B35: 2018-11-01 | C35: Woodcote 'Wings' | E35: 8 | F35: 28 | G35: v | H35: Harwell 'Eagles' | J35: 0 | K35: 20 | L35: W | M35: 8 | N35: L | O35: -8 | Q35: Row Labels | R35: Sum of Pts | S35: Sum of Sht | T35: Sum of Diff2 | V35: Row Labels | W35: D | X35: L | Y35: W | Z35: Grand Total
A36: Wk 6 | B36: 2018-11-02 | C36: Abingdon 'Park Rangers' | E36: 6 | F36: 24 | G36: v | H36: Drayton 'Wasps' | J36: 2 | K36: 21 | L36: W | M36: 3 | N36: L | O36: -3 | Q36: Abingdon 'Park Rangers' | R36: 18 | S36: 95 | T36: -3 | V36: Abingdon 'Park Rangers' | X36: 2 | Y36: 2 | Z36: 4
A37: x | L37: L | M37: 0 | N37: L | O37: 0 | Q37: Aston 'Astons' | R37: 14 | S37: 84 | T37: -2 | V37: Aston 'Astons' | X37: 2 | Y37: 2 | Z37: 4
A38: Wk 7 | B38: 2018-11-05 | C38: Benson SMBC | E38: 6 | F38: 25 | G38: v | H38: Stanford 'Blues' | J38: 2 | K38: 12 | L38: W | M38: 13 | N38: L | O38: -13 | Q38: Benson SMBC | R38: 8 | S38: 64 | T38: -32 | V38: Benson SMBC | X38: 3 | Y38: 1 | Z38: 4
A39: Wk 7 | B39: 2018-11-06 | C39: Drayton 'Wasps' | E39: 8 | F39: 31 | G39: v | H39: Didcot Bowls Club 'Red Kites' | J39: 0 | K39: 16 | L39: W | M39: 15 | N39: L | O39: -15 | Q39: Didcot Bowls Club 'Red Kites' | R39: 16 | S39: 93 | T39: 0 | V39: Didcot Bowls Club 'Red Kites' | X39: 2 | Y39: 2 | Z39: 4
A40: Wk 7 | B40: 2018-11-07 | C40: Kingston 'Kites' | E40: 2 | F40: 20 | G40: v | H40: Woodcote 'Wings' | J40: 6 | K40: 22 | L40: =IF(E40=" "," ",IF(E40<4,"L",IF(E40=4,"D","W"))) -> L | M40: =F40-K40 -> -2 | N40: =IF(J40=" "," ",IF(J40<4,"L",IF(J40=4,"D","W"))) -> W | O40: =K40-F40 -> 2 | Q40: Drayton 'Wasps' | R40: 29 | S40: 133 | T40: 30 | V40: Drayton 'Wasps' | X40: 1 | Y40: 4 | Z40: 5
A41: Wk 7 | B41: 2018-11-08 | C41: Harwell 'Eagles' | E41: 0 | F41: 19 | G41: v | H41: Aston 'Astons' | J41: 8 | K41: 25 | L41: L | M41: -6 | N41: W | O41: 6 | Q41: Harwell 'Eagles' | R41: 7 | S41: 60 | T41: -9 | V41: Harwell 'Eagles' | X41: 2 | Y41: 1 | Z41: 3
A42: x | L42: L | M42: 0 | N42: L | O42: 0 | Q42: Kingston 'Kites' | R42: 1 | S42: 55 | T42: -66 | V42: Kingston 'Kites' | X42: 4 | Z42: 4
A43: Wk 8 | B43: 2018-11-14 | C43: Aston 'Astons' | E43: 8 | F43: 35 | G43: v | H43: Kingston 'Kites' | J43: 0 | K43: 13 | L43: W | M43: 22 | N43: L | O43: -22 | Q43: Stanford 'Blues' | R43: 12 | S43: 82 | T43: -56 | V43: Stanford 'Blues' | X43: 4 | Y43: 1 | Z43: 5
A44: Wk 8 | B44: 2018-11-15 | C44: Woodcote 'Wings' | E44: 2 | F44: 24 | G44: v | H44: Benson SMBC | J44: 6 | K44: 26 | L44: L | M44: -2 | N44: W | O44: 2 | Q44: Woodcote 'Wings' | R44: 8 | S44: 40 | T44: -1 | V44: Woodcote 'Wings' | X44: 1 | Y44: 1 | Z44: 2
A45: x | L45: L | M45: 0 | N45: L | O45: 0 | Q45: (blank) | T45: 0 | V45: (blank)
A46: Wk 9 | B46: 2018-11-19 | C46: Benson SMBC | E46: 8 | F46: 27 | G46: v | H46: Aston 'Astons' | J46: 0 | K46: 18 | L46: W | M46: 9 | N46: L | O46: -9 | Q46: Grand Total | R46: 113 | S46: 706 | T46: -139 | V46: Grand Total | X46: 21 | Y46: 14 | Z46: 35
A47: Wk 9 | B47: 2018-11-22 | C47: Harwell 'Eagles' | E47: 6 | F47: 31 | G47: v | H47: Stanford 'Blues' | J47: 2 | K47: 18 | L47: W | M47: 13 | N47: L | O47: -13
A48: x | L48: L | M48: 0 | N48: L | O48: 0
A49: Wk10 | B49: 2018-11-27 | C49: Drayton 'Wasps' | E49: 6 | F49: 21 | G49: v | H49: Woodcote 'Wings' | J49: 2 | K49: 18 | L49: W | M49: 3 | N49: L | O49: -3
A50: Wk10 | B50: 2018-11-29 | C50: Harwell 'Eagles' | E50: 6 | F50: 31 | H50: Abingdon 'Park Rangers' | J50: 2 | K50: 25 | L50: W | M50: 6 | N50: L | O50: -6
A51: x | L51: L | M51: 0 | N51: L | O51: 0
A52: Wk11 | B52: 2018-12-05 | C52: Aston 'Astons' | E52: 2 | F52: 21 | G52: v | H52: Drayton 'Wasps' | J52: 6 | K52: 22 | L52: L | M52: -1 | N52: W | O52: 1
A53: Wk11 | B53: 2018-12-06 | C53: Harwell 'Eagles' | E53: 8 | F53: 30 | G53: v | H53: Kingston 'Kites' | J53: 0 | K53: 17 | L53: W | M53: 13 | N53: L | O53: -13
A54: Wk11 | B54: 2018-12-06 | C54: Woodcote 'Wings' | E54: 2 | F54: 21 | G54: v | H54: Didcot Bowls Club 'Red Kites' | J54: 6 | K54: 26 | L54: L | M54: -5 | N54: W | O54: 5
A55: Wk11 | B55: 2018-12-07 | C55: Abingdon 'Park Rangers' | E55: 8 | F55: 46 | G55: v | H55: Stanford 'Blues' | J55: 0 | K55: 12 | L55: W | M55: 34 | N55: L | O55: -34
A56: x | L56: L | M56: 0 | N56: L | O56: 0
A57: Wk12 | B57: 2018-12-10 | C57: Benson SMBC | E57: 1 | F57: 17 | G57: v | H57: Harwell 'Eagles' | J57: 7 | K57: 22 | L57: L | M57: -5 | N57: W | O57: 5
A58: Wk12 | B58: 2018-12-11 | C58: Stanford 'Blues' | E58: 1 | F58: 18 | G58: v | H58: Drayton 'Wasps' | J58: 7 | K58: 24 | L58: L | M58: -6 | N58: W | O58: 6
A59: Wk12 | B59: 2018-12-12 | C59: Didcot Bowls Club 'Red Kites' | E59: 8 | F59: 23 | G59: v | H59: Aston 'Astons' | J59: 0 | K59: 17 | L59: W | M59: 6 | N59: L | O59: -6
A60: Wk12 | B60: 2018-12-12 | C60: Kingston 'Kites' | E60: 2 | F60: 23 | G60: v | H60: Abingdon 'Park Rangers' | J60: 6 | K60: 26 | L60: L | M60: -3 | N60: W | O60: 3
A61: x | L61: L | M61: 0 | N61: L | O61: 0
A62: Wk13 | B62: 2018-12-19 | C62: Didcot Bowls Club 'Red Kites' | E62: 8 | F62: 23 | G62: v | H62: Stanford 'Blues' | J62: 0 | K62: 16 | L62: W | M62: 7 | N62: L | O62: -7
A63: x | L63: L | M63: 0 | N63: L | O63: 0
A64: Wk16 | B64: 2019-01-14 | C64: Benson SMBC | G64: v | H64: Abingdon 'Park Rangers' | L64: L | M64: 0 | N64: L | O64: 0
A65: Wk16 | B65: 2019-01-16 | C65: Aston 'Astons' | G65: v | H65: Woodcote 'Wings' | L65: L | M65: 0 | N65: L | O65: 0
A66: Wk16 | B66: 2019-01-16 | C66: Kingston 'Kites' | G66: v | H66: Drayton 'Wasps' | L66: L | M66: 0 | N66: L | O66: 0
A67: Wk16 | B67: 2019-01-17 | C67: Harwell 'Eagles' | G67: v | H67: Didcot Bowls Club 'Red Kites' | L67: L | M67: 0 | N67: L | O67: 0
A68: x | L68: L | M68: 0 | N68: L | O68: 0
A69: Wk17 | B69: 2019-01-22 | C69: Drayton 'Wasps' | G69: v | H69: Benson SMBC | L69: L | M69: 0 | N69: L | O69: 0
A70: Wk17 | B70: 2019-01-22 | C70: Stanford 'Blues' | G70: v | H70: Harwell 'Eagles' | L70: L | M70: 0 | N70: L | O70: 0
A71: Wk17 | B71: 2019-01-23 | C71: Didcot Bowls Club 'Red Kites' | G71: v | H71: Kingston 'Kites' | L71: L | M71: 0 | N71: L | O71: 0
A72: Wk17 | B72: 2019-01-25 | C72: Abingdon 'Park Rangers' | G72: v | H72: Aston 'Astons' | L72: L | M72: 0 | N72: L | O72: 0
A73: x | L73: L | M73: 0 | N73: L | O73: 0
A74: Wk18 | B74: 2019-01-28 | C74: Benson SMBC | G74: v | H74: Didcot Bowls Club 'Red Kites' | L74: L | M74: 0 | N74: L | O74: 0
A75: Wk18 | B75: 2019-01-29 | C75: Drayton 'Wasps' | G75: v | H75: Abingdon 'Park Rangers' | L75: L | M75: 0 | N75: L | O75: 0
A76: Wk18 | B76: 2019-01-30 | C76: Kingston 'Kites' | G76: v | H76: Stanford 'Blues' | L76: L | M76: 0 | N76: L | O76: 0
A77: Wk18 | B77: 2019-01-31 | C77: Harwell 'Eagles' | G77: v | H77: Woodcote 'Wings' | L77: L | M77: 0 | N77: L | O77: 0
A78: x | L78: L | M78: 0 | N78: L | O78: 0
A79: Wk19 | B79: 2019-02-06 | C79: Didcot Bowls Club 'Red Kites' | G79: v | H79: Drayton 'Wasps' | L79: L | M79: 0 | N79: L | O79: 0
A80: x | L80: L | M80: 0 | N80: L | O80: 0
A81: Wk20 | B81: 2019-02-12 | C81: Stanford 'Blues' | G81: v | H81: Benson SMBC | L81: L | M81: 0 | N81: L | O81: 0
A82: Wk20 | B82: 2019-02-13 | C82: Aston 'Astons' | G82: v | H82: Harwell 'Eagles' | L82: L | M82: 0 | N82: L | O82: 0
A83: Wk20 | B83: 2019-02-14 | C83: Woodcote 'Wings' | G83: v | H83: Kingston 'Kites' | L83: L | M83: 0 | N83: L | O83: 0
A84: x | L84: L | M84: 0 | N84: L | O84: 0
A85: Wk21 | B85: 2019-02-18 | C85: Benson SMBC | G85: v | H85: Woodcote 'Wings' | L85: L | M85: 0 | N85: L | O85: 0
A86: Wk21 | B86: 2019-02-19 | C86: Drayton 'Wasps' | G86: v | H86: Stanford 'Blues' | L86: L | M86: 0 | N86: L | O86: 0
A87: Wk21 | B87: 2019-02-20 | C87: Didcot Bowls Club 'Red Kites' | G87: v | H87: Abingdon 'Park Rangers' | L87: L | M87: 0 | N87: L | O87: 0
A88: Wk21 | B88: 2019-02-20 | C88: Kingston 'Kites' | G88: v | H88: Aston 'Astons' | L88: L | M88: 0 | N88: L | O88: 0
A89: x | L89: L | M89: 0 | N89: L | O89: 0
A90: Wk22 | B90: 2019-02-26 | C90: Stanford 'Blues' | G90: v | H90: Didcot Bowls Club 'Red Kites' | L90: L | M90: 0 | N90: L | O90: 0
A91: Wk22 | B91: 2019-02-27 | C91: Aston 'Astons' | G91: v | H91: Benson SMBC | L91: L | M91: 0 | N91: L | O91: 0
A92: Wk22 | B92: 2019-02-28 | C92: Woodcote 'Wings' | G92: v | H92: Drayton 'Wasps' | L92: L | M92: 0 | N92: L | O92: 0
A93: Wk22 | B93: 2019-03-01 | C93: Abingdon 'Park Rangers' | G93: v | H93: Harwell 'Eagles' | L93: L | M93: 0 | N93: L | O93: 0
A94: x | L94: L | M94: 0 | N94: L | O94: 0
A95: Wk23 | B95: 2019-03-05 | C95: Stanford 'Blues' | G95: v | H95: Woodcote 'Wings' | L95: =IF(E95=" "," ",IF(E95<4,"L",IF(E95=4,"D","W"))) -> L | M95: =F95-K95 -> 0 | N95: =IF(J95=" "," ",IF(J95<4,"L",IF(J95=4,"D","W"))) -> L | O95: =K95-F95 -> 0
A96: Wk23 | B96: 2019-03-06 | C96: Didcot Bowls Club 'Red Kites' | G96: v | H96: Woodcote 'Wings' | L96: L | M96: 0 | N96: L | O96: 0
A97: x | L97: L | M97: 0 | N97: L | O97: 0
A98: Wk24 | B98: 2019-03-12 | C98: Drayton 'Wasps' | G98: v | H98: Aston 'Astons' | L98: L | M98: 0 | N98: L | O98: 0
A99: Wk24 | B99: 2019-03-12 | C99: Stanford 'Blues' | G99: v | H99: Abingdon 'Park Rangers' | L99: L | M99: 0 | N99: L | O99: 0
A100: Wk24 | B100: 2019-03-13 | C100: Kingston 'Kites' | G100: v | H100: Harwell 'Eagles' | L100: L | M100: 0 | N100: L | O100: 0
A101: x | L101: L | M101: 0 | N101: L | O101: 0
A102: Wk25 | B102: 2019-03-20 | C102: Aston 'Astons' | G102: v | H102: Didcot Bowls Club 'Red Kites' | L102: L | M102: 0 | N102: L | O102: 0
A103: Wk25 | B103: 2019-03-21 | C103: Harwell 'Eagles' | G103: v | H103: Benson SMBC | L103: L | M103: 0 | N103: L | O103: 0
A104: Wk25 | B104: 2019-03-21 | C104: Woodcote 'Wings' | G104: v | H104: Stanford 'Blues' | L104: =IF(E104=" "," ",IF(E104<4,"L",IF(E104=4,"D","W"))) -> L | M104: =F104-K104 -> 0 | N104: =IF(J104=" "," ",IF(J104<4,"L",IF(J104=4,"D","W"))) -> L | O104: =K104-F104 -> 0
A105: Wk25 | B105: 2019-03-22 | C105: Abingdon 'Park Rangers' | G105: v | H105: Kingston 'Kites' | L105: L | M105: 0 | N105: L | O105: 0
A106: x | L106: L | M106: 0 | N106: L | O106: 0
A107: Wk26 | B107: 2019-03-25 | C107: Benson SMBC | G107: v | H107: Kingston 'Kites' | L107: L | M107: 0 | N107: L | O107: 0
A108: Wk26 | B108: 2019-03-26 | C108: Drayton 'Wasps' | G108: v | H108: Harwell 'Eagles' | L108: L | M108: 0 | N108: L | O108: 0
A109: Wk26 | B109: 2019-03-26 | C109: Stanford 'Blues' | G109: v | H109: Aston 'Astons' | L109: L | M109: 0 | N109: L | O109: 0
A110: Wk26 | B110: 2019-03-29 | C110: Abingdon 'Park Rangers' | G110: v | H110: Woodcote 'Wings' | L110: L | M110: 0 | N110: L | O110: 0
A111: x | L111: L | M111: 0 | N111: L | O111: 0
A112: x | L112: D | M112: 0 | N112: D | O112: 0
A113: x
A114: x
A115: x
A116: x
A117: x
A118: x
A119: x
A120: x
A121: x
A122: x
A123: x
A124: x
A125: x
A126: x
A127: x
A128: x
A129: x
A130: x
A131: x
A132: x
A133: x
A134: x
A135: x
A136: x
A137: x
A138: x
A139: x
A140: x
A141: x
A142: x
A143: x
A144: x
A145: x
A146: x
A147: x
A148: x
A149: x
A150: x
A151: x

Sheet Afternoon Div 2
G1: Afternoon - Division Two | P1: =SUM(K5:K14)/8 -> 29.0 | Q1: =INT(P1) -> 29.0
G2: Results For Season 2018-19
D3: Fixtures | I3: Shots | P3: =SUBTOTAL(9,P4:P12)/8 -> 83.0 | Q3: Games
D4: Play | E4: W | F4: D | G4: L | H4: For | I4: Aga | J4: Diff | K4: Pts
B5: Stanford 'Greys' | D5: =VLOOKUP($B5,$V$33:$Z$47,5,0)+VLOOKUP($B5,$V$18:$Z$30,5,0) -> 7 | E5: =VLOOKUP($B5,$V$33:$Z$47,4,0)+VLOOKUP($B5,$V$18:$Z$30,4,0) -> 5 | F5: =VLOOKUP($B5,$V$33:$Z$47,2,0)+VLOOKUP($B5,$V$18:$Z$30,2,0) -> 0 | G5: =VLOOKUP($B5,$V$33:$Z$47,3,0)+VLOOKUP($B5,$V$18:$Z$30,3,0) -> 2 | H5: =VLOOKUP($B5,$Q$18:$S$30,3,0)+VLOOKUP($B5,$Q$35:$S$47,3,0) -> 197 | I5: =H5-J5 -> 137 | J5: =VLOOKUP($B5,$Q$18:$T$30,4,0)+VLOOKUP($B5,$Q$35:$T$47,4,0) -> 60 | K5: =VLOOKUP($B5,$Q$18:$T$30,2,0)+VLOOKUP($B5,$Q$35:$T$47,2,0) -> 40 | P5: =(14-D5)*8+K5 -> 96
B6: Chosley 'Chaffinches' | D6: 8 | E6: 5 | F6: 0 | G6: 3 | H6: 216 | I6: 161 | J6: 55 | K6: 36 | P6: =(14-D6)*8+K6 -> 84
B7: Harwell 'Swifts' | D7: 8 | E7: 4 | F7: 0 | G7: 4 | H7: 176 | I7: 182 | J7: -6 | K7: 36 | P7: 84
B8: Abingdon 'Optimists' | D8: 7 | E8: 4 | F8: 0 | G8: 3 | H8: 167 | I8: 153 | J8: 14 | K8: 30 | P8: 86
B9: Drayton 'Hammers' | D9: 7 | E9: 4 | F9: 0 | G9: 3 | H9: 173 | I9: 162 | J9: 11 | K9: 30 | P9: 86
B10: Woodcote 'Woodpeckers' | D10: 7 | E10: 3 | F10: 0 | G10: 4 | H10: 167 | I10: 156 | J10: 11 | K10: 28 | P10: 84
B11: Abingdon ' Ascendants' | D11: 7 | E11: 3 | F11: 0 | G11: 4 | H11: 131 | I11: 191 | J11: -60 | K11: 20 | P11: 76
B12: Didcot Bowls Club 'Buzzards' | D12: 7 | E12: 1 | F12: 0 | G12: 6 | H12: 118 | I12: 203 | J12: -85 | K12: 12 | P12: 68
B14: DATE | C14: Home | D14: . | E14: Pts | F14: Sht | G14: v | H14: Away | I14: . | J14: Pts | K14: Sht | L14: Result | M14: Diff | N14: Result | O14: Diff | V14: Sht | W14: (All)
A15: Wk 2 | B15: 2018-10-02 | C15: Drayton 'Hammers' | E15: 8 | F15: 32 | G15: v | H15: Woodcote 'Woodpeckers' | J15: 0 | K15: 11 | L15: =IF(E15=" "," ",IF(E15<4,"L",IF(E15=4,"D","W"))) -> W | M15: =F15-K15 -> 21 | N15: =IF(J15=" "," ",IF(J15<4,"L",IF(J15=4,"D","W"))) -> L | O15: =K15-F15 -> -21 | Q15: Home
A16: Wk 2 | B16: 2018-10-02 | C16: Stanford 'Greys' | E16: 8 | F16: 29 | G16: v | H16: Abingdon 'Optimists' | J16: 0 | K16: 17 | L16: W | M16: 12 | N16: L | O16: =K16-F16 -> -12 | R16: Values | V16: Count of Pts | W16: Column Labels
A17: Wk 2 | B17: 2018-10-03 | C17: Didcot Bowls Club 'Buzzards' | E17: 2 | F17: 16 | G17: v | H17: Harwell 'Swifts' | J17: 6 | K17: 21 | L17: L | M17: -5 | N17: W | O17: 5 | Q17: Row Labels | R17: Sum of Pts | S17: Sum of Sht | T17: Sum of Diff | V17: Row Labels | W17: D | X17: L | Y17: W | Z17: Grand Total
A18: Wk 2 | B18: 2018-10-05 | C18: Abingdon ' Ascendants' | E18: 6 | F18: 22 | G18: v | H18: Chosley 'Chaffinches' | J18: 2 | K18: 21 | L18: W | M18: 1 | N18: L | O18: -1 | Q18: Abingdon ' Ascendants' | R18: 12 | S18: 58 | T18: -15 | V18: Abingdon ' Ascendants' | X18: 1 | Y18: 2 | Z18: 3
A19: x | L19: L | M19: 0 | N19: L | O19: 0 | Q19: Abingdon 'Optimists' | R19: 28 | S19: 118 | T19: 53 | V19: Abingdon 'Optimists' | Y19: 4 | Z19: 4
A20: Wk 3 | B20: 2018-10-10 | C20: Abingdon 'Optimists' | E20: 6 | F20: 28 | G20: v | H20: Abingdon ' Ascendants' | J20: 2 | K20: 20 | L20: W | M20: 8 | N20: =IF(J20=" "," ",IF(J20<4,"L",IF(J20=4,"D","W"))) -> L | O20: -8 | Q20: Chosley 'Chaffinches' | R20: 20 | S20: 115 | T20: 28 | V20: Chosley 'Chaffinches' | X20: 1 | Y20: 3 | Z20: 4
A21: Wk 3 | B21: 2018-10-11 | C21: Chosley 'Chaffinches' | E21: 6 | F21: 38 | G21: v | H21: Didcot Bowls Club 'Buzzards' | J21: 2 | K21: 20 | L21: W | M21: 18 | N21: L | O21: -18 | Q21: Didcot Bowls Club 'Buzzards' | R21: 8 | S21: 71 | T21: -33 | V21: Didcot Bowls Club 'Buzzards' | X21: 3 | Y21: 1 | Z21: 4
A22: x | L22: L | M22: 0 | N22: L | O22: 0 | Q22: Drayton 'Hammers' | R22: 22 | S22: 107 | T22: 23 | V22: Drayton 'Hammers' | X22: 1 | Y22: 3 | Z22: 4
A23: Wk 4 | B23: 2018-10-16 | C23: Drayton 'Hammers' | E23: 0 | F23: 14 | G23: v | H23: Chosley 'Chaffinches' | J23: 8 | K23: 39 | L23: L | M23: -25 | N23: W | O23: 25 | Q23: Harwell 'Swifts' | R23: 26 | S23: 102 | T23: 25 | V23: Harwell 'Swifts' | X23: 1 | Y23: 3 | Z23: 4
A24: Wk 4 | B24: 2018-10-17 | C24: Didcot Bowls Club 'Buzzards' | E24: 6 | F24: 27 | G24: v | H24: Abingdon 'Optimists' | J24: 2 | K24: 14 | L24: W | M24: 13 | N24: L | O24: -13 | Q24: Stanford 'Greys' | R24: 22 | S24: 92 | T24: 42 | V24: Stanford 'Greys' | Y24: 3 | Z24: 3
A25: Wk 4 | B25: 2018-10-19 | C25: Abingdon ' Ascendants' | E25: 0 | F25: 15 | G25: v | H25: Woodcote 'Woodpeckers' | J25: 8 | K25: 35 | L25: L | M25: -20 | N25: W | O25: 20 | Q25: Woodcote 'Woodpeckers' | R25: 18 | S25: 83 | T25: 24 | V25: Woodcote 'Woodpeckers' | X25: 1 | Y25: 2 | Z25: 3
A26: x | L26: L | M26: 0 | N26: L | O26: 0 | Q26: (blank) | T26: 0 | V26: (blank)
A27: Wk 5 | B27: 2018-10-23 | C27: Stanford 'Greys' | E27: 6 | F27: 29 | G27: v | H27: Harwell 'Swifts' | J27: 2 | K27: 20 | L27: W | M27: 9 | N27: L | O27: -9 | Q27: Grand Total | R27: 156 | S27: 746 | T27: 147 | V27: Grand Total | X27: 8 | Y27: 21 | Z27: 29
A28: Wk 5 | B28: 2018-10-25 | C28: Harwell 'Swifts' | E28: 8 | F28: 29 | G28: v | H28: Drayton 'Hammers' | J28: 0 | K28: 22 | L28: W | M28: 7 | N28: L | O28: -7
A29: x | L29: L | M29: 0 | N29: L | O29: 0
A30: Wk 6 | B30: 2018-11-01 | C30: Harwell 'Swifts' | E30: 2 | F30: 22 | G30: v | H30: Abingdon ' Ascendants' | J30: 6 | K30: 25 | L30: L | M30: -3 | N30: W | O30: 3
A31: x | L31: L | M31: 0 | N31: L | O31: 0
A32: Wk 7 | B32: 2018-11-07 | C32: Abingdon 'Optimists' | E32: 8 | F32: 35 | G32: v | H32: Drayton 'Hammers' | J32: 0 | K32: 13 | L32: W | M32: 22 | N32: L | O32: -22
A33: Wk 7 | B33: 2018-11-08 | C33: Chosley 'Chaffinches' | E33: 0 | F33: 18 | G33: v | H33: Stanford 'Greys' | J33: 8 | K33: 27 | L33: L | M33: -9 | N33: W | O33: 9 | R33: Values | V33: Count of Pts | W33: Column Labels
A34: Wk 7 | B34: 2018-11-08 | C34: Woodcote 'Woodpeckers' | E34: 8 | F34: 40 | G34: v | H34: Didcot Bowls Club 'Buzzards' | J34: 0 | K34: 10 | L34: W | M34: 30 | N34: L | O34: -30 | Q34: Row Labels | R34: Sum of Pts | S34: Sum of Sht | T34: Sum of Diff2 | V34: Row Labels | W34: D | X34: L | Y34: W | Z34: Grand Total
A35: x | L35: L | M35: 0 | N35: L | O35: 0 | Q35: Abingdon ' Ascendants' | R35: 8 | S35: 73 | T35: -45 | V35: Abingdon ' Ascendants' | X35: 3 | Y35: 1 | Z35: 4
A36: Wk 8 | B36: 2018-11-15 | C36: Chosley 'Chaffinches' | E36: 8 | F36: 32 | G36: v | H36: Abingdon 'Optimists' | J36: 0 | K36: 18 | L36: W | M36: 14 | N36: L | O36: -14 | Q36: Abingdon 'Optimists' | R36: 2 | S36: 49 | T36: -39 | V36: Abingdon 'Optimists' | X36: 3 | Z36: 3
A37: Wk 8 | B37: 2018-11-15 | C37: Harwell 'Swifts' | E37: 8 | F37: 28 | G37: v | H37: Woodcote 'Woodpeckers' | J37: 0 | K37: 17 | L37: W | M37: 11 | N37: L | O37: -11 | Q37: Chosley 'Chaffinches' | R37: 16 | S37: 101 | T37: 27 | V37: Chosley 'Chaffinches' | X37: 2 | Y37: 2 | Z37: 4
A38: Wk 8 | B38: 2018-11-16 | C38: Abingdon ' Ascendants' | E38: 6 | F38: 21 | G38: v | H38: Didcot Bowls Club 'Buzzards' | J38: 2 | K38: 17 | L38: W | M38: 4 | N38: L | O38: -4 | Q38: Didcot Bowls Club 'Buzzards' | R38: 4 | S38: 47 | T38: -52 | V38: Didcot Bowls Club 'Buzzards' | X38: 3 | Z38: 3
A39: x | L39: L | M39: 0 | N39: L | O39: 0 | Q39: Drayton 'Hammers' | R39: 8 | S39: 66 | T39: -12 | V39: Drayton 'Hammers' | X39: 2 | Y39: 1 | Z39: 3
A40: Wk 9 | B40: 2018-11-20 | C40: Drayton 'Hammers' | E40: 6 | F40: 27 | G40: v | H40: Stanford 'Greys' | J40: 2 | K40: 19 | L40: =IF(E40=" "," ",IF(E40<4,"L",IF(E40=4,"D","W"))) -> W | M40: =F40-K40 -> 8 | N40: =IF(J40=" "," ",IF(J40<4,"L",IF(J40=4,"D","W"))) -> L | O40: =K40-F40 -> -8 | Q40: Harwell 'Swifts' | R40: 10 | S40: 74 | T40: -31 | V40: Harwell 'Swifts' | X40: 3 | Y40: 1 | Z40: 4
A41: Wk 9 | B41: 2018-11-22 | C41: Woodcote 'Woodpeckers' | E41: 8 | F41: 28 | G41: v | H41: Stanford 'Greys' | J41: 0 | K41: 21 | L41: W | M41: 7 | N41: L | O41: -7 | Q41: Stanford 'Greys' | R41: 18 | S41: 105 | T41: 18 | V41: Stanford 'Greys' | X41: 2 | Y41: 2 | Z41: 4
A42: x | Q42: Woodcote 'Woodpeckers' | R42: 10 | S42: 84 | T42: -13 | V42: Woodcote 'Woodpeckers' | X42: 3 | Y42: 1 | Z42: 4
A43: Wk10 | B43: 2018-11-27 | C43: Stanford 'Greys' | E43: 8 | F43: 34 | G43: v | H43: Abingdon ' Ascendants' | J43: 0 | K43: 13 | L43: W | M43: 21 | N43: L | O43: -21 | Q43: (blank) | T43: 0 | V43: (blank)
A44: Wk10 | B44: 2018-11-28 | C44: Abingdon 'Optimists' | E44: 8 | F44: 33 | G44: v | H44: Harwell 'Swifts' | J44: 0 | K44: 11 | L44: W | M44: 22 | N44: L | O44: -22 | Q44: Grand Total | R44: 76 | S44: 599 | T44: -147 | V44: Grand Total | X44: 21 | Y44: 8 | Z44: 29
A45: Wk10 | B45: 2018-11-28 | C45: Didcot Bowls Club 'Buzzards' | E45: 0 | F45: 14 | G45: v | H45: Drayton 'Hammers' | J45: 8 | K45: 31 | L45: L | M45: -17 | N45: W | O45: 17
A46: Wk10 | B46: 2018-11-29 | C46: Woodcote 'Woodpeckers' | E46: 2 | F46: 15 | G46: v | H46: Chosley 'Chaffinches' | J46: 6 | K46: 28 | L46: L | M46: -13 | N46: W | O46: 13
A47: x | L47: L | M47: 0 | N47: L | O47: 0
A48: Wk11 | B48: 2018-12-04 | C48: Drayton 'Hammers' | E48: 8 | F48: 34 | G48: v | H48: Abingdon ' Ascendants' | J48: 0 | K48: 15 | L48: =IF(E48=" "," ",IF(E48<4,"L",IF(E48=4,"D","W"))) -> W | M48: =F48-K48 -> 19 | N48: L | O48: =K48-F48 -> -19
A49: Wk11 | B49: 2018-12-05 | C49: Abingdon 'Optimists' | E49: 6 | F49: 22 | G49: v | H49: Woodcote 'Woodpeckers' | J49: 2 | K49: 21 | L49: W | M49: 1 | N49: L | O49: -1
A50: Wk11 | B50: 2018-12-05 | C50: Didcot Bowls Club 'Buzzards' | E50: 0 | F50: 14 | G50: v | H50: Stanford 'Greys' | J50: 8 | K50: 38 | L50: L | M50: -24 | N50: W | O50: 24
A51: Wk11 | B51: 2018-12-06 | C51: Chosley 'Chaffinches' | E51: 6 | F51: 27 | G51: v | H51: Harwell 'Swifts' | J51: 2 | K51: 22 | L51: W | M51: 5 | N51: L | O51: -5
A52: x | L52: L | M52: 0 | N52: L | O52: 0
A53: Wk12 | B53: 2018-12-13 | C53: Harwell 'Swifts' | E53: 8 | F53: 23 | G53: v | H53: Chosley 'Chaffinches' | J53: 0 | K53: 13 | L53: W | M53: 10 | N53: L | O53: -10
A54: x | L54: L | M54: 0 | N54: L | O54: 0
A55: Wk16 | B55: 2019-01-15 | C55: Stanford 'Greys' | G55: v | H55: Didcot Bowls Club 'Buzzards' | L55: L | M55: 0 | N55: L | O55: 0
A56: Wk16 | B56: 2019-01-17 | C56: Woodcote 'Woodpeckers' | G56: v | H56: Abingdon 'Optimists' | L56: L | M56: 0 | N56: L | O56: 0
A57: Wk16 | B57: 2019-01-18 | C57: Abingdon ' Ascendants' | G57: v | H57: Drayton 'Hammers' | L57: L | M57: 0 | N57: L | O57: 0
A58: x | L58: L | M58: 0 | N58: L | O58: 0
A59: Wk17 | B59: 2019-01-23 | C59: Abingdon 'Optimists' | G59: v | H59: Didcot Bowls Club 'Buzzards' | L59: L | M59: 0 | N59: L | O59: 0
A60: Wk17 | B60: 2019-01-24 | C60: Chosley 'Chaffinches' | G60: v | H60: Drayton 'Hammers' | L60: L | M60: 0 | N60: L | O60: 0
A61: Wk17 | B61: 2019-01-24 | C61: Harwell 'Swifts' | G61: v | H61: Stanford 'Greys' | L61: L | M61: 0 | N61: L | O61: 0
A62: Wk17 | B62: 2019-01-24 | C62: Woodcote 'Woodpeckers' | G62: v | H62: Abingdon ' Ascendants' | L62: L | M62: 0 | N62: L | O62: 0
A63: x | L63: L | M63: 0 | N63: L | O63: 0
A64: Wk18 | B64: 2019-01-29 | C64: Stanford 'Greys' | G64: v | H64: Woodcote 'Woodpeckers' | L64: L | M64: 0 | N64: L | O64: 0
A65: Wk18 | B65: 2019-02-01 | C65: Abingdon ' Ascendants' | G65: v | H65: Abingdon 'Optimists' | L65: L | M65: 0 | N65: L | O65: 0
A66: Wk18 | B66: 2019-01-30 | C66: Didcot Bowls Club 'Buzzards' | G66: v | H66: Chosley 'Chaffinches' | L66: L | M66: 0 | N66: L | O66: 0
A67: Wk18 | B67: 2019-01-29 | C67: Drayton 'Hammers' | G67: v | H67: Harwell 'Swifts' | L67: L | M67: 0 | N67: =IF(J67=" "," ",IF(J67<4,"L",IF(J67=4,"D","W"))) -> L | O67: 0
A68: x | L68: L | M68: 0 | N68: L | O68: 0
A69: Wk20 | B69: 2019-02-12 | C69: Drayton 'Hammers' | G69: v | H69: Abingdon 'Optimists' | L69: L | M69: 0 | N69: =IF(J69=" "," ",IF(J69<4,"L",IF(J69=4,"D","W"))) -> L | O69: 0
A70: Wk20 | B70: 2019-02-13 | C70: Didcot Bowls Club 'Buzzards' | G70: v | H70: Woodcote 'Woodpeckers' | L70: L | M70: 0 | N70: =IF(J70=" "," ",IF(J70<4,"L",IF(J70=4,"D","W"))) -> L | O70: 0
A71: x | L71: L | M71: 0 | N71: L | O71: 0
A72: Wk21 | B72: 2019-02-19 | C72: Stanford 'Greys' | G72: v | H72: Chosley 'Chaffinches' | L72: L | M72: 0 | N72: L | O72: 0
A73: Wk21 | B73: 2019-02-22 | C73: Abingdon ' Ascendants' | G73: v | H73: Harwell 'Swifts' | L73: L | M73: 0 | N73: L | O73: 0
A74: x | L74: L | M74: 0 | N74: L | O74: 0
A75: Wk22 | B75: 2019-02-26 | C75: Drayton 'Hammers' | G75: v | H75: Didcot Bowls Club 'Buzzards' | L75: L | M75: 0 | N75: L | O75: 0
A76: Wk22 | B76: 2019-02-28 | C76: Chosley 'Chaffinches' | G76: v | H76: Woodcote 'Woodpeckers' | L76: L | M76: 0 | N76: L | O76: 0
A77: Wk22 | B77: 2019-02-28 | C77: Harwell 'Swifts' | G77: v | H77: Abingdon 'Optimists' | L77: L | M77: 0 | N77: L | O77: 0
A78: x | L78: L | M78: 0 | N78: L | O78: 0
A79: Wk23 | B79: 2019-03-08 | C79: Abingdon ' Ascendants' | G79: v | H79: Stanford 'Greys' | L79: L | M79: 0 | N79: L | O79: 0
A80: x
A81: Wk24 | B81: 2019-03-13 | C81: Abingdon 'Optimists' | G81: v | H81: Chosley 'Chaffinches' | L81: =IF(E81=" "," ",IF(E81<4,"L",IF(E81=4,"D","W"))) -> L | M81: =F81-K81 -> 0 | N81: =IF(J81=" "," ",IF(J81<4,"L",IF(J81=4,"D","W"))) -> L | O81: =K81-F81 -> 0
A82: Wk24 | B82: 2019-03-13 | C82: Didcot Bowls Club 'Buzzards' | G82: v | H82: Abingdon ' Ascendants' | L82: L | M82: 0 | N82: L | O82: 0
A83: Wk24 | B83: 2019-03-14 | C83: Woodcote 'Woodpeckers' | G83: v | H83: Harwell 'Swifts' | L83: L | M83: 0 | N83: L | O83: 0
A84: x | L84: L | M84: 0 | N84: L | O84: 0
A85: Wk25 | B85: 2019-03-19 | C85: Stanford 'Greys' | G85: v | H85: Drayton 'Hammers' | L85: L | M85: 0 | N85: L | O85: 0
A86: x | L86: L | M86: 0 | N86: L | O86: 0
A87: Wk26 | B87: 2019-03-27 | C87: Abingdon 'Optimists' | G87: v | H87: Stanford 'Greys' | L87: L | M87: 0 | N87: L | O87: 0
A88: Wk26 | B88: 2019-03-28 | C88: Chosley 'Chaffinches' | G88: v | H88: Abingdon ' Ascendants' | L88: =IF(E88=" "," ",IF(E88<4,"L",IF(E88=4,"D","W"))) -> L | M88: =F88-K88 -> 0 | N88: =IF(J88=" "," ",IF(J88<4,"L",IF(J88=4,"D","W"))) -> L | O88: =K88-F88 -> 0
A89: Wk26 | B89: 2019-03-28 | C89: Harwell 'Swifts' | G89: v | H89: Didcot Bowls Club 'Buzzards' | L89: =IF(E89=" "," ",IF(E89<4,"L",IF(E89=4,"D","W"))) -> L | M89: =F89-K89 -> 0 | N89: =IF(J89=" "," ",IF(J89<4,"L",IF(J89=4,"D","W"))) -> L | O89: =K89-F89 -> 0
A90: Wk26 | B90: 2019-03-28 | C90: Woodcote 'Woodpeckers' | G90: v | H90: Drayton 'Hammers' | L90: =IF(E90=" "," ",IF(E90<4,"L",IF(E90=4,"D","W"))) -> L | M90: =F90-K90 -> 0 | N90: =IF(J90=" "," ",IF(J90<4,"L",IF(J90=4,"D","W"))) -> L | O90: =K90-F90 -> 0
A91: x | L91: =IF(E91=" "," ",IF(E91<4,"L",IF(E91=4,"D","W"))) -> L | M91: =F91-K91 -> 0 | N91: =IF(J91=" "," ",IF(J91<4,"L",IF(J91=4,"D","W"))) -> L | O91: =K91-F91 -> 0
A92: x | L92: W | M92: =F88-K88 -> 0 | N92: W | O92: =K88-F88 -> 0
A93: x | L93: D | M93: =F89-K89 -> 0 | N93: D | O93: =K89-F89 -> 0
A95: x
A96: x
A97: x
A98: x
A99: x
A100: x
A101: x
A102: x
A103: x
A104: x
A105: x
A106: x
A107: x
A108: x
A109: x
A110: x
A111: x
A112: x
A113: x
A114: x
A115: x
A116: x
A117: x
A118: x
A119: x
A120: x
A121: x
A122: x
A123: x
A124: x
A125: x
A126: x
A127: x
A128: x
A129: x
A130: x
A131: x
A132: x
A133: x
A134: x
A135: x
A136: x
A137: x
A138: x
A139: x
A140: x
A141: x
A142: x
A143: x
A144: x
A145: x
A146: x
A147: x
A148: x
A149: x
A150: x
A151: x
A152: x
A153: x
